{"text_format":"2","workbook":"xlsx","n_sheets":4,"sheets":["Syllabus","Schedule","Author and Rec of Changes","DV-IDENTITY-0"],"not_rendered":{"charts":0,"images":0,"macros":0,"external_links":0,"defined_names":2,"comments":0,"pivot_tables":0},"unopened":[],"bounds":{"document_bytes":16777216,"sheet_cells":100000,"run_cost":"one","rows_first":2000,"rows_last":500,"rows_between":2000,"halvings":0,"cell_chars":16384,"cell_head_chars":4096},"cells_cut":0,"cells_raw":0,"read":"whole","date_system":"1900"}

{"sheet":"Syllabus","index":0,"n_rows":31,"n_cols":6,"rows_kept":31,"cut":false,"hidden":false,"merged":[[24,0,30,0],[24,1,30,1],[17,3,17,5],[24,3,24,5],[26,3,26,5],[27,3,27,5],[25,3,25,5],[29,3,29,5],[30,3,30,5],[28,3,28,5],[9,1,13,1],[16,2,18,2],[23,3,23,5],[18,3,18,5],[6,1,7,1],[16,3,16,5],[7,2,7,3],[7,4,7,5],[14,2,15,2],[6,0,7,0],[8,2,8,5],[0,0,0,5],[20,0,23,0],[20,1,23,1],[20,3,20,5],[21,3,21,5],[14,0,19,0],[9,0,13,0],[9,5,13,5],[5,2,5,5],[14,1,19,1],[14,3,14,5],[22,3,22,5],[19,3,19,5],[15,3,15,5],[1,2,1,5],[2,2,2,5],[3,2,3,5],[4,2,4,5],[6,2,6,5]]}
[{"$f":"C2","v":"Basic English Grammar Online"}]
[1,"Topic Name","Basic English Grammar Online"]
[2,"Topic Code"]
[3,"Version","v1.0"]
[4,"Training Audience","All FSOFTers with A1 - A2 Elementary Level English"]
[5,"Course Objectives","The topic cover the following output standard:\nUnderstand A1 - A2 Elementary Level English structures and their grammatical usage in different contexts and examples."]
[6,"Online Topic Outline","Course Outline:"]
[null,null,"1. Sentence elements\n2. Noun\n3. Pronoun\n4. Verb\n5. Adjective & Adverb\n6. Comparison\n7. Preposition\n8. Conjunction\n9. Past tenses\n10. Present tenses\n11. Future tenses",null,"12. Clause and sentence\n13. Clause of concession\n14. Clause of reason\n15. Clause of result\n16. Clause of purpose\n17. Relative clause\n18. Types of sentence\n19. Passive sentences\n20. Conditional sentences\n21. \"Wish\" sentences\n22. Indirect speech"]
[7,"Offline Topic Outline","1. Sentence elements + Noun\n2. Pronoun + Verb\n3. Adjective & Adverb \n4. Comparison\n5. Preposition + Conjunction \n6. Past tenses + Present tenses \n7. Future tenses\n8. Clause and sentence + Clause of concession \n9. Clause of reason + Clause of result \n10. Clause of purpose + Relative clause\n11. Types of sentence + Passive sentences\n12. Conditional sentences + \"Wish\" sentences\n13. Indirect speech"]
[7,"Time Allocation","Concept/Lecture",{"$f":"Schedule!F88","v":0.1678082191780822},"Concepts, theory",{"$f":"Schedule!E93/60","v":24.333333333333332}]
[null,null,"Assignment/Lab",{"$f":"Schedule!F89","v":0}]
[null,null,"Guides/Review",{"$f":"Schedule!F90","v":0.5547945205479452}]
[null,null,"Test/Quiz",{"$f":"Schedule!F91","v":0.2773972602739726},"Topic quiz"]
[null,null,"Exam",{"$f":"Schedule!F92","v":0}]
[8,"Training Materials & Environments","Text book"]
[]
[null,null,"References"]
[]
[]
[null,null,"Technical requirements"]
[9,"Assessment Scheme","Quiz/Test","445 Quizzes (In-course)"]
[null,null,"Assignments","Weekly assignment - Office form"]
[null,null,"Final Test","Grammar test - Offlice form"]
[null,null,"Passing criteria","- Complete all topics and quizzes\n- Complete 80% weekly homework\n- Offline attendance 80%\n- 80% Final test"]
[10,"Training Delivery Principles","Trainees",150]
[null,null,"Trainer","N/A"]
[null,null,"Training","- Students are requested to view the entire contents of the lecture, complete the quizzes in each topics\n- Students are required to attend virtual session via MS Teams. \n  Virtual session will be held once per week. LTI admin will collect all the comments and questions during one-week learning on Udemy and the trainer will explain all the received questions on the virtual meeting\n- Each week, students are required to complete the homework on Office form. All the common mistakes are also noted and explained by trainer on Virtual session\n- Students are also required to complete the final test and reach at least 80% final result"]
[null,null,"Re-Test","N/A"]
[null,null,"Marking","N/A"]
[null,null,"Waiver Criteria","N/A"]
[null,null,"Others","N/A"]

{"sheet":"Schedule","index":1,"n_rows":93,"n_cols":8,"rows_kept":93,"cut":false,"hidden":false,"merged":[[0,0,0,5]]}
[]
["Lecture","Content","Learning Objectives","Delivery Type","Duration (minute)","Training Materials / Logistics & General Notes\n(Required, For Reference, etc.)","Format","Note"]
[null,"1. Sentence elements",null,"Concept/Lecture",13,null,"Online"]
[null,"Quiz1",null,"Test/Quiz",5,null,"Online"]
[null,"Quiz2",null,"Test/Quiz",5,null,"Online"]
[null,"2. Noun",null,"Concept/Lecture",18,null,"Online"]
[null,"Quiz3",null,"Test/Quiz",5,null,"Online"]
[null,"Quiz4",null,"Test/Quiz",5,null,"Online"]
[null,"Quiz5",null,"Test/Quiz",5,null,"Online"]
[null,"3. Pronoun",null,"Concept/Lecture",11,null,"Online"]
[null,"Quiz6",null,"Test/Quiz",5,null,"Online"]
[null,"Quiz7",null,"Test/Quiz",10,null,"Online"]
[null,"Virtual session: Sentence elements (Noun, Pronoun)","During the lesson, students can:\n- Review the knowledge learnt online \n- Make questions of learnt lessons and receive appropriate explanation\n- Be aware of common mistakes made in their homework and test","Guides/Review",90,null,"Virtual"]
[null,"4. Verb",null,"Concept/Lecture",7,null,"Online"]
[null,"Quiz8",null,"Test/Quiz",5,null,"Online"]
[null,"Quiz9",null,"Test/Quiz",5,null,"Online"]
[null,"Quiz10",null,"Test/Quiz",5,null,"Online"]
[null,"5. Adjective & Adverb",null,"Concept/Lecture",13,null,"Online"]
[null,"Quiz11",null,"Test/Quiz",3,null,"Online"]
[null,"Quiz12",null,"Test/Quiz",1,null,"Online"]
[null,"Quiz13",null,"Test/Quiz",6,null,"Online"]
[null,"Quiz14",null,"Test/Quiz",5,null,"Online"]
[null,"Virtual session: Sentence elements (Verb, Adjective and Adverb)","During the lesson, students can:\n- Review the knowledge learnt online \n- Make questions of learnt lessons and receive appropriate explanation\n- Be aware of common mistakes made in their homework and test","Guides/Review",90,null,"Virtual","Review sentence elements"]
[null,"6. Comparison",null,"Concept/Lecture",10,null,"Online"]
[null,"Quiz15",null,"Test/Quiz",1,null,"Online"]
[null,"Quiz16",null,"Test/Quiz",9,null,"Online"]
[null,"Quiz17",null,"Test/Quiz",5,null,"Online"]
[null,"7. Preposition",null,"Concept/Lecture",12,null,"Online"]
[null,"Quiz18",null,"Test/Quiz",7,null,"Online"]
[null,"Quiz19",null,"Test/Quiz",3,null,"Online"]
[null,"Quiz20",null,"Test/Quiz",5,null,"Online"]
[null,"8. Conjunction",null,"Concept/Lecture",13,null,"Online"]
[null,"Quiz21",null,"Test/Quiz",5,null,"Online"]
[null,"Quiz22",null,"Test/Quiz",10,null,"Online"]
[null,"Virtual session (Comparison, Preposition, Conjunction)","During the lesson, students can:\n- Review the knowledge learnt online \n- Make questions of learnt lessons and receive appropriate explanation\n- Be aware of common mistakes made in their homework and test","Guides/Review",90,null,"Virtual"]
[null,"9. Past tenses",null,"Concept/Lecture",14,null,"Online"]
[null,"Quiz23",null,"Test/Quiz",10,null,"Online"]
[null,"Quiz24",null,"Test/Quiz",9,null,"Online"]
[null,"Quiz25",null,"Test/Quiz",10,null,"Online"]
[null,"10. Present tenses",null,"Concept/Lecture",14,null,"Online"]
[null,"Quiz26",null,"Test/Quiz",9,null,"Online"]
[null,"Quiz27",null,"Test/Quiz",6,null,"Online"]
[null,"Quiz28",null,"Test/Quiz",4,null,"Online"]
[null,"Quiz29",null,"Test/Quiz",10,null,"Online"]
[null,"Virtual session (Past Tense, Present Tense)","During the lesson, students can:\n- Review the knowledge learnt online \n- Make questions of learnt lessons and receive appropriate explanation\n- Be aware of common mistakes made in their homework and test","Guides/Review",90,null,"Virtual"]
[null,"11. Future tenses",null,"Concept/Lecture",16,null,"Online"]
[null,"Quiz30",null,"Test/Quiz",10,null,"Online"]
[null,"Quiz31",null,"Test/Quiz",6,null,"Online"]
[null,"Quiz32",null,"Test/Quiz",9,null,"Online"]
[null,"Quiz33",null,"Test/Quiz",3,null,"Online"]
[null,"Quiz34",null,"Test/Quiz",17,null,"Online"]
[null,"Virtual session (Future Tense)","During the lesson, students can:\n- Review the knowledge learnt online \n- Make questions of learnt lessons and receive appropriate explanation\n- Be aware of common mistakes made in their homework and test","Guides/Review",90,null,"Virtual"]
[null,"12. Clause and sentence",null,"Concept/Lecture",7,null,"Online"]
[null,"Quiz35",null,"Test/Quiz",20,null,"Online"]
[null,"13. Clause of concession",null,"Concept/Lecture",5,null,"Online"]
[null,"Quiz36",null,"Test/Quiz",8,null,"Online"]
[null,"Quiz37",null,"Test/Quiz",7,null,"Online"]
[null,"14. Clause of reason",null,"Concept/Lecture",4,null,"Online"]
[null,"Quiz38",null,"Test/Quiz",11,null,"Online"]
[null,"Quiz39",null,"Test/Quiz",4,null,"Online"]
[null,"15. Clause of result",null,"Concept/Lecture",7,null,"Online"]
[null,"Quiz40",null,"Test/Quiz",8,null,"Online"]
[null,"Quiz41",null,"Test/Quiz",7,null,"Online"]
[null,"Virtual session (Clause of sentences)","During the lesson, students can:\n- Review the knowledge learnt online \n- Make questions of learnt lessons and receive appropriate explanation\n- Be aware of common mistakes made in their homework and test","Guides/Review",90,null,"Virtual"]
[null,"16. Clause of purpose",null,"Concept/Lecture",4,null,"Online"]
[null,"Quiz42",null,"Test/Quiz",7,null,"Online"]
[null,"Quiz43",null,"Test/Quiz",8,null,"Online"]
[null,"17. Relative clause",null,"Concept/Lecture",20,null,"Online"]
[null,"Quiz44",null,"Test/Quiz",13,null,"Online"]
[null,"Quiz45",null,"Test/Quiz",14,null,"Online"]
[null,"Quiz46",null,"Test/Quiz",15,null,"Online"]
[null,"Virtual session (Clause of sentences)","During the lesson, students can:\n- Review the knowledge learnt online \n- Make questions of learnt lessons and receive appropriate explanation\n- Be aware of common mistakes made in their homework and test","Guides/Review",90,null,"Virtual","Review clauses"]
[null,"18. Types of sentence",null,"Concept/Lecture",14,null,"Online"]
[null,"Quiz47",null,"Test/Quiz",15,null,"Online"]
[null,"19. Passive sentences",null,"Concept/Lecture",15,null,"Online"]
[null,"Quiz48",null,"Test/Quiz",15,null,"Online"]
[null,"Quiz49",null,"Test/Quiz",15,null,"Online"]
[null,"Virtual session","During the lesson, students can:\n- Review the knowledge learnt online \n- Make questions of learnt lessons and receive appropriate explanation\n- Be aware of common mistakes made in their homework and test","Guides/Review",90,null,"Virtual"]
[null,"20. Conditional sentences (Passive sentence)",null,"Concept/Lecture",10,null,"Online"]
[null,"Quiz50",null,"Test/Quiz",15,null,"Online"]
[null,"21. \"Wish\" sentences",null,"Concept/Lecture",4,null,"Online"]
[null,"Quiz51",null,"Test/Quiz",15,null,"Online"]
[null,"22. Indirect speech",null,"Concept/Lecture",14,null,"Online"]
[null,"Quiz52",null,"Test/Quiz",15,null,"Online"]
[null,"Quiz53",null,"Test/Quiz",15,null,"Online"]
[null,"Virtual session (Indirect sentence)","During the lesson, students can:\n- Review the knowledge learnt online \n- Make questions of learnt lessons and receive appropriate explanation\n- Be aware of common mistakes made in their homework and test","Guides/Review",90,null,"Virtual","Review type of sentences"]
[]
[null,null,null,"Concept/Lecture",{"$f":"SUMIF(D3:D85,D88,E3:E85)","v":245},{"$f":"E88/$E$93","v":0.1678082191780822}]
[null,null,null,"Assignment/Lab",{"$f":"SUMIF(D6:D87,D89,E6:E87)","v":0},{"$f":"E89/$E$93","v":0}]
[null,null,null,"Guides/Review",{"$f":"SUMIF(D10:D88,D90,E10:E88)","v":810},{"$f":"E90/$E$93","v":0.5547945205479452}]
[null,null,null,"Test/Quiz",{"$f":"SUMIF(D14:D85,D91,E14:E85)","v":405},{"$f":"E91/$E$93","v":0.2773972602739726}]
[null,null,null,"Exam",{"$f":"SUMIF(D3:D90,D92,E3:E90)","v":0},{"$f":"E92/$E$93","v":0}]
[null,null,null,"Total",{"$f":"SUM(E88:E92)","v":1460},{"$f":"SUM(F88:F92)","v":1}]

{"sheet":"Author and Rec of Changes","index":2,"n_rows":10,"n_cols":7,"rows_kept":10,"cut":false,"hidden":false,"merged":[[0,0,0,6],[5,0,5,6]]}
["AUTHORSHIP"]
[null,"Role","Name","Account","Unit","Notes"]
[null,"Creator","Bùi Thị Thùy Dung","DungBTT1","LTI.TO"]
[null,"Reviewer","LyDK","Đinh Khánh Ly","LTI.TO"]
[null,"Approver","LyDK","Đinh Khánh Ly","LTI.TO"]
["RECORD OF CHANGES"]
["*A - Added M - Modified D - Deleted"]
[]
[null,"Date","Changes",null,"A*\nM, D","Contents","Version"]
[null,"2024-04-15",null,null,"A",null,"v1.0"]

{"sheet":"DV-IDENTITY-0","index":3,"n_rows":5,"n_cols":256,"rows_kept":5,"cut":false,"hidden":true,"merged":[]}
[{"$f":"IF(Syllabus!1:1,\"AAAAAH7b/wA=\",0)","v":{"$error":"#VALUE!"}},{"$f":"AND(Syllabus!#REF!,\"AAAAAH7b/wE=\")","v":{"$error":"#REF!"}},{"$f":"AND(Syllabus!B1,\"AAAAAH7b/wI=\")","v":{"$error":"#VALUE!"}},{"$f":"AND(Syllabus!C1,\"AAAAAH7b/wM=\")","v":{"$error":"#VALUE!"}},{"$f":"AND(Syllabus!D1,\"AAAAAH7b/wQ=\")","v":{"$error":"#VALUE!"}},{"$f":"AND(Syllabus!E1,\"AAAAAH7b/wU=\")","v":{"$error":"#VALUE!"}},{"$f":"AND(Syllabus!F1,\"AAAAAH7b/wY=\")","v":{"$error":"#VALUE!"}},{"$f":"AND(Syllabus!G1,\"AAAAAH7b/wc=\")","v":{"$error":"#VALUE!"}},{"$f":"IF(Syllabus!#REF!,\"AAAAAH7b/wg=\",0)","v":{"$error":"#REF!"}},{"$f":"AND(Syllabus!#REF!,\"AAAAAH7b/wk=\")","v":{"$error":"#REF!"}},{"$f":"AND(Syllabus!#REF!,\"AAAAAH7b/wo=\")","v":{"$error":"#REF!"}},{"$f":"AND(Syllabus!#REF!,\"AAAAAH7b/ws=\")","v":{"$error":"#REF!"}},{"$f":"AND(Syllabus!#REF!,\"AAAAAH7b/ww=\")","v":{"$error":"#REF!"}},{"$f":"AND(Syllabus!#REF!,\"AAAAAH7b/w0=\")","v":{"$error":"#REF!"}},{"$f":"AND(Syllabus!#REF!,\"AAAAAH7b/w4=\")","v":{"$error":"#REF!"}},{"$f":"AND(Syllabus!#REF!,\"AAAAAH7b/w8=\")","v":{"$error":"#REF!"}},{"$f":"IF(Syllabus!2:2,\"AAAAAH7b/xA=\",0)","v":0},{"$f":"AND(Syllabus!A2,\"AAAAAH7b/xE=\")","v":true},{"$f":"AND(Syllabus!B2,\"AAAAAH7b/xI=\")","v":{"$error":"#VALUE!"}},{"$f":"AND(Syllabus!C2,\"AAAAAH7b/xM=\")","v":{"$error":"#VALUE!"}},{"$f":"AND(Syllabus!D2,\"AAAAAH7b/xQ=\")","v":{"$error":"#VALUE!"}},{"$f":"AND(Syllabus!E2,\"AAAAAH7b/xU=\")","v":{"$error":"#VALUE!"}},{"$f":"AND(Syllabus!F2,\"AAAAAH7b/xY=\")","v":{"$error":"#VALUE!"}},{"$f":"AND(Syllabus!G2,\"AAAAAH7b/xc=\")","v":{"$error":"#VALUE!"}},{"$f":"IF(Syllabus!3:3,\"AAAAAH7b/xg=\",0)","v":0},{"$f":"AND(Syllabus!A3,\"AAAAAH7b/xk=\")","v":true},{"$f":"AND(Syllabus!B3,\"AAAAAH7b/xo=\")","v":{"$error":"#VALUE!"}},{"$f":"AND(Syllabus!C3,\"AAAAAH7b/xs=\")","v":{"$error":"#VALUE!"}},{"$f":"AND(Syllabus!D3,\"AAAAAH7b/xw=\")","v":{"$error":"#VALUE!"}},{"$f":"AND(Syllabus!E3,\"AAAAAH7b/x0=\")","v":{"$error":"#VALUE!"}},{"$f":"AND(Syllabus!F3,\"AAAAAH7b/x4=\")","v":{"$error":"#VALUE!"}},{"$f":"AND(Syllabus!G3,\"AAAAAH7b/x8=\")","v":{"$error":"#VALUE!"}},{"$f":"IF(Syllabus!4:4,\"AAAAAH7b/yA=\",0)","v":0},{"$f":"AND(Syllabus!A4,\"AAAAAH7b/yE=\")","v":true},{"$f":"AND(Syllabus!B4,\"AAAAAH7b/yI=\")","v":{"$error":"#VALUE!"}},{"$f":"AND(Syllabus!C4,\"AAAAAH7b/yM=\")","v":{"$error":"#VALUE!"}},{"$f":"AND(Syllabus!D4,\"AAAAAH7b/yQ=\")","v":{"$error":"#VALUE!"}},{"$f":"AND(Syllabus!E4,\"AAAAAH7b/yU=\")","v":{"$error":"#VALUE!"}},{"$f":"AND(Syllabus!F4,\"AAAAAH7b/yY=\")","v":{"$error":"#VALUE!"}},{"$f":"AND(Syllabus!G4,\"AAAAAH7b/yc=\")","v":{"$error":"#VALUE!"}},{"$f":"IF(Syllabus!5:5,\"AAAAAH7b/yg=\",0)","v":0},{"$f":"AND(Syllabus!A5,\"AAAAAH7b/yk=\")","v":true},{"$f":"AND(Syllabus!B5,\"AAAAAH7b/yo=\")","v":{"$error":"#VALUE!"}},{"$f":"AND(Syllabus!C5,\"AAAAAH7b/ys=\")","v":{"$error":"#VALUE!"}},{"$f":"AND(Syllabus!D5,\"AAAAAH7b/yw=\")","v":{"$error":"#VALUE!"}},{"$f":"AND(Syllabus!E5,\"AAAAAH7b/y0=\")","v":{"$error":"#VALUE!"}},{"$f":"AND(Syllabus!F5,\"AAAAAH7b/y4=\")","v":{"$error":"#VALUE!"}},{"$f":"AND(Syllabus!G5,\"AAAAAH7b/y8=\")","v":{"$error":"#VALUE!"}},{"$f":"IF(Syllabus!6:6,\"AAAAAH7b/zA=\",0)","v":0},{"$f":"AND(Syllabus!A6,\"AAAAAH7b/zE=\")","v":true},{"$f":"AND(Syllabus!B6,\"AAAAAH7b/zI=\")","v":{"$error":"#VALUE!"}},{"$f":"AND(Syllabus!C6,\"AAAAAH7b/zM=\")","v":{"$error":"#VALUE!"}},{"$f":"AND(Syllabus!D6,\"AAAAAH7b/zQ=\")","v":{"$error":"#VALUE!"}},{"$f":"AND(Syllabus!E6,\"AAAAAH7b/zU=\")","v":{"$error":"#VALUE!"}},{"$f":"AND(Syllabus!F6,\"AAAAAH7b/zY=\")","v":{"$error":"#VALUE!"}},{"$f":"AND(Syllabus!G6,\"AAAAAH7b/zc=\")","v":{"$error":"#VALUE!"}},{"$f":"IF(Syllabus!#REF!,\"AAAAAH7b/zg=\",0)","v":{"$error":"#REF!"}},{"$f":"AND(Syllabus!#REF!,\"AAAAAH7b/zk=\")","v":{"$error":"#REF!"}},{"$f":"AND(Syllabus!#REF!,\"AAAAAH7b/zo=\")","v":{"$error":"#REF!"}},{"$f":"AND(Syllabus!#REF!,\"AAAAAH7b/zs=\")","v":{"$error":"#REF!"}},{"$f":"AND(Syllabus!#REF!,\"AAAAAH7b/zw=\")","v":{"$error":"#REF!"}},{"$f":"AND(Syllabus!#REF!,\"AAAAAH7b/z0=\")","v":{"$error":"#REF!"}},{"$f":"AND(Syllabus!#REF!,\"AAAAAH7b/z4=\")","v":{"$error":"#REF!"}},{"$f":"AND(Syllabus!#REF!,\"AAAAAH7b/z8=\")","v":{"$error":"#REF!"}},{"$f":"IF(Syllabus!#REF!,\"AAAAAH7b/0A=\",0)","v":{"$error":"#REF!"}},{"$f":"AND(Syllabus!#REF!,\"AAAAAH7b/0E=\")","v":{"$error":"#REF!"}},{"$f":"AND(Syllabus!#REF!,\"AAAAAH7b/0I=\")","v":{"$error":"#REF!"}},{"$f":"AND(Syllabus!#REF!,\"AAAAAH7b/0M=\")","v":{"$error":"#REF!"}},{"$f":"AND(Syllabus!#REF!,\"AAAAAH7b/0Q=\")","v":{"$error":"#REF!"}},{"$f":"AND(Syllabus!#REF!,\"AAAAAH7b/0U=\")","v":{"$error":"#REF!"}},{"$f":"AND(Syllabus!#REF!,\"AAAAAH7b/0Y=\")","v":{"$error":"#REF!"}},{"$f":"AND(Syllabus!#REF!,\"AAAAAH7b/0c=\")","v":{"$error":"#REF!"}},{"$f":"IF(Syllabus!#REF!,\"AAAAAH7b/0g=\",0)","v":{"$error":"#REF!"}},{"$f":"AND(Syllabus!#REF!,\"AAAAAH7b/0k=\")","v":{"$error":"#REF!"}},{"$f":"AND(Syllabus!#REF!,\"AAAAAH7b/0o=\")","v":{"$error":"#REF!"}},{"$f":"AND(Syllabus!#REF!,\"AAAAAH7b/0s=\")","v":{"$error":"#REF!"}},{"$f":"AND(Syllabus!#REF!,\"AAAAAH7b/0w=\")","v":{"$error":"#REF!"}},{"$f":"AND(Syllabus!#REF!,\"AAAAAH7b/00=\")","v":{"$error":"#REF!"}},{"$f":"AND(Syllabus!#REF!,\"AAAAAH7b/04=\")","v":{"$error":"#REF!"}},{"$f":"AND(Syllabus!#REF!,\"AAAAAH7b/08=\")","v":{"$error":"#REF!"}},{"$f":"IF(Syllabus!#REF!,\"AAAAAH7b/1A=\",0)","v":{"$error":"#REF!"}},{"$f":"AND(Syllabus!#REF!,\"AAAAAH7b/1E=\")","v":{"$error":"#REF!"}},{"$f":"AND(Syllabus!#REF!,\"AAAAAH7b/1I=\")","v":{"$error":"#REF!"}},{"$f":"AND(Syllabus!#REF!,\"AAAAAH7b/1M=\")","v":{"$error":"#REF!"}},{"$f":"AND(Syllabus!#REF!,\"AAAAAH7b/1Q=\")","v":{"$error":"#REF!"}},{"$f":"AND(Syllabus!#REF!,\"AAAAAH7b/1U=\")","v":{"$error":"#REF!"}},{"$f":"AND(Syllabus!#REF!,\"AAAAAH7b/1Y=\")","v":{"$error":"#REF!"}},{"$f":"AND(Syllabus!#REF!,\"AAAAAH7b/1c=\")","v":{"$error":"#REF!"}},{"$f":"IF(Syllabus!9:9,\"AAAAAH7b/1g=\",0)","v":0},{"$f":"AND(Syllabus!A7,\"AAAAAH7b/1k=\")","v":true},{"$f":"AND(Syllabus!B7,\"AAAAAH7b/1o=\")","v":{"$error":"#VALUE!"}},{"$f":"AND(Syllabus!C9,\"AAAAAH7b/1s=\")","v":{"$error":"#VALUE!"}},{"$f":"AND(Syllabus!D9,\"AAAAAH7b/1w=\")","v":{"$error":"#VALUE!"}},{"$f":"AND(Syllabus!E9,\"AAAAAH7b/10=\")","v":{"$error":"#VALUE!"}},{"$f":"AND(Syllabus!F9,\"AAAAAH7b/14=\")","v":{"$error":"#VALUE!"}},{"$f":"AND(Syllabus!G9,\"AAAAAH7b/18=\")","v":{"$error":"#VALUE!"}},{"$f":"IF(Syllabus!10:10,\"AAAAAH7b/2A=\",0)","v":0},{"$f":"AND(Syllabus!A10,\"AAAAAH7b/2E=\")","v":true},{"$f":"AND(Syllabus!B10,\"AAAAAH7b/2I=\")","v":{"$error":"#VALUE!"}},{"$f":"AND(Syllabus!C10,\"AAAAAH7b/2M=\")","v":{"$error":"#VALUE!"}},{"$f":"AND(Syllabus!D10,\"AAAAAH7b/2Q=\")","v":true},{"$f":"AND(Syllabus!E10,\"AAAAAH7b/2U=\")","v":{"$error":"#VALUE!"}},{"$f":"AND(Syllabus!F10,\"AAAAAH7b/2Y=\")","v":true},{"$f":"AND(Syllabus!G10,\"AAAAAH7b/2c=\")","v":{"$error":"#VALUE!"}},{"$f":"IF(Syllabus!11:11,\"AAAAAH7b/2g=\",0)","v":0},{"$f":"AND(Syllabus!A11,\"AAAAAH7b/2k=\")","v":{"$error":"#VALUE!"}},{"$f":"AND(Syllabus!B11,\"AAAAAH7b/2o=\")","v":{"$error":"#VALUE!"}},{"$f":"AND(Syllabus!C11,\"AAAAAH7b/2s=\")","v":{"$error":"#VALUE!"}},{"$f":"AND(Syllabus!D11,\"AAAAAH7b/2w=\")","v":false},{"$f":"AND(Syllabus!E11,\"AAAAAH7b/20=\")","v":{"$error":"#VALUE!"}},{"$f":"AND(Syllabus!F11,\"AAAAAH7b/24=\")","v":{"$error":"#VALUE!"}},{"$f":"AND(Syllabus!G11,\"AAAAAH7b/28=\")","v":{"$error":"#VALUE!"}},{"$f":"IF(Syllabus!12:12,\"AAAAAH7b/3A=\",0)","v":0},{"$f":"AND(Syllabus!A12,\"AAAAAH7b/3E=\")","v":{"$error":"#VALUE!"}},{"$f":"AND(Syllabus!B12,\"AAAAAH7b/3I=\")","v":{"$error":"#VALUE!"}},{"$f":"AND(Syllabus!C12,\"AAAAAH7b/3M=\")","v":{"$error":"#VALUE!"}},{"$f":"AND(Syllabus!D12,\"AAAAAH7b/3Q=\")","v":true},{"$f":"AND(Syllabus!E12,\"AAAAAH7b/3U=\")","v":{"$error":"#VALUE!"}},{"$f":"AND(Syllabus!F12,\"AAAAAH7b/3Y=\")","v":{"$error":"#VALUE!"}},{"$f":"AND(Syllabus!G12,\"AAAAAH7b/3c=\")","v":{"$error":"#VALUE!"}},{"$f":"IF(Syllabus!13:13,\"AAAAAH7b/3g=\",0)","v":0},{"$f":"AND(Syllabus!A13,\"AAAAAH7b/3k=\")","v":{"$error":"#VALUE!"}},{"$f":"AND(Syllabus!B13,\"AAAAAH7b/3o=\")","v":{"$error":"#VALUE!"}},{"$f":"AND(Syllabus!C13,\"AAAAAH7b/3s=\")","v":{"$error":"#VALUE!"}},{"$f":"AND(Syllabus!D13,\"AAAAAH7b/3w=\")","v":true},{"$f":"AND(Syllabus!E13,\"AAAAAH7b/30=\")","v":{"$error":"#VALUE!"}},{"$f":"AND(Syllabus!F13,\"AAAAAH7b/34=\")","v":{"$error":"#VALUE!"}},{"$f":"AND(Syllabus!G13,\"AAAAAH7b/38=\")","v":{"$error":"#VALUE!"}},{"$f":"IF(Syllabus!14:14,\"AAAAAH7b/4A=\",0)","v":0},{"$f":"AND(Syllabus!A14,\"AAAAAH7b/4E=\")","v":{"$error":"#VALUE!"}},{"$f":"AND(Syllabus!B14,\"AAAAAH7b/4I=\")","v":{"$error":"#VALUE!"}},{"$f":"AND(Syllabus!C14,\"AAAAAH7b/4M=\")","v":{"$error":"#VALUE!"}},{"$f":"AND(Syllabus!D14,\"AAAAAH7b/4Q=\")","v":false},{"$f":"AND(Syllabus!E14,\"AAAAAH7b/4U=\")","v":{"$error":"#VALUE!"}},{"$f":"AND(Syllabus!F14,\"AAAAAH7b/4Y=\")","v":{"$error":"#VALUE!"}},{"$f":"AND(Syllabus!G14,\"AAAAAH7b/4c=\")","v":{"$error":"#VALUE!"}},{"$f":"IF(Syllabus!15:15,\"AAAAAH7b/4g=\",0)","v":0},{"$f":"AND(Syllabus!A15,\"AAAAAH7b/4k=\")","v":true},{"$f":"AND(Syllabus!B15,\"AAAAAH7b/4o=\")","v":{"$error":"#VALUE!"}},{"$f":"AND(Syllabus!C15,\"AAAAAH7b/4s=\")","v":{"$error":"#VALUE!"}},{"$f":"AND(Syllabus!D15,\"AAAAAH7b/4w=\")","v":{"$error":"#VALUE!"}},{"$f":"AND(Syllabus!E15,\"AAAAAH7b/40=\")","v":{"$error":"#VALUE!"}},{"$f":"AND(Syllabus!F15,\"AAAAAH7b/44=\")","v":{"$error":"#VALUE!"}},{"$f":"AND(Syllabus!G15,\"AAAAAH7b/48=\")","v":{"$error":"#VALUE!"}},{"$f":"IF(Syllabus!16:16,\"AAAAAH7b/5A=\",0)","v":0},{"$f":"AND(Syllabus!A16,\"AAAAAH7b/5E=\")","v":{"$error":"#VALUE!"}},{"$f":"AND(Syllabus!B16,\"AAAAAH7b/5I=\")","v":{"$error":"#VALUE!"}},{"$f":"AND(Syllabus!C16,\"AAAAAH7b/5M=\")","v":{"$error":"#VALUE!"}},{"$f":"AND(Syllabus!D16,\"AAAAAH7b/5Q=\")","v":{"$error":"#VALUE!"}},{"$f":"AND(Syllabus!E16,\"AAAAAH7b/5U=\")","v":{"$error":"#VALUE!"}},{"$f":"AND(Syllabus!F16,\"AAAAAH7b/5Y=\")","v":{"$error":"#VALUE!"}},{"$f":"AND(Syllabus!G16,\"AAAAAH7b/5c=\")","v":{"$error":"#VALUE!"}},{"$f":"IF(Syllabus!17:17,\"AAAAAH7b/5g=\",0)","v":0},{"$f":"AND(Syllabus!A17,\"AAAAAH7b/5k=\")","v":{"$error":"#VALUE!"}},{"$f":"AND(Syllabus!B17,\"AAAAAH7b/5o=\")","v":{"$error":"#VALUE!"}},{"$f":"AND(Syllabus!C17,\"AAAAAH7b/5s=\")","v":{"$error":"#VALUE!"}},{"$f":"AND(Syllabus!D17,\"AAAAAH7b/5w=\")","v":{"$error":"#VALUE!"}},{"$f":"AND(Syllabus!E17,\"AAAAAH7b/50=\")","v":{"$error":"#VALUE!"}},{"$f":"AND(Syllabus!F17,\"AAAAAH7b/54=\")","v":{"$error":"#VALUE!"}},{"$f":"AND(Syllabus!G17,\"AAAAAH7b/58=\")","v":{"$error":"#VALUE!"}},{"$f":"IF(Syllabus!18:18,\"AAAAAH7b/6A=\",0)","v":0},{"$f":"AND(Syllabus!A18,\"AAAAAH7b/6E=\")","v":{"$error":"#VALUE!"}},{"$f":"AND(Syllabus!B18,\"AAAAAH7b/6I=\")","v":{"$error":"#VALUE!"}},{"$f":"AND(Syllabus!C18,\"AAAAAH7b/6M=\")","v":{"$error":"#VALUE!"}},{"$f":"AND(Syllabus!D18,\"AAAAAH7b/6Q=\")","v":{"$error":"#VALUE!"}},{"$f":"AND(Syllabus!E18,\"AAAAAH7b/6U=\")","v":{"$error":"#VALUE!"}},{"$f":"AND(Syllabus!F18,\"AAAAAH7b/6Y=\")","v":{"$error":"#VALUE!"}},{"$f":"AND(Syllabus!G18,\"AAAAAH7b/6c=\")","v":{"$error":"#VALUE!"}},{"$f":"IF(Syllabus!19:19,\"AAAAAH7b/6g=\",0)","v":0},{"$f":"AND(Syllabus!A19,\"AAAAAH7b/6k=\")","v":{"$error":"#VALUE!"}},{"$f":"AND(Syllabus!B19,\"AAAAAH7b/6o=\")","v":{"$error":"#VALUE!"}},{"$f":"AND(Syllabus!C19,\"AAAAAH7b/6s=\")","v":{"$error":"#VALUE!"}},{"$f":"AND(Syllabus!D19,\"AAAAAH7b/6w=\")","v":{"$error":"#VALUE!"}},{"$f":"AND(Syllabus!E19,\"AAAAAH7b/60=\")","v":{"$error":"#VALUE!"}},{"$f":"AND(Syllabus!F19,\"AAAAAH7b/64=\")","v":{"$error":"#VALUE!"}},{"$f":"AND(Syllabus!G19,\"AAAAAH7b/68=\")","v":{"$error":"#VALUE!"}},{"$f":"IF(Syllabus!20:20,\"AAAAAH7b/7A=\",0)","v":0},{"$f":"AND(Syllabus!A20,\"AAAAAH7b/7E=\")","v":{"$error":"#VALUE!"}},{"$f":"AND(Syllabus!B20,\"AAAAAH7b/7I=\")","v":{"$error":"#VALUE!"}},{"$f":"AND(Syllabus!C20,\"AAAAAH7b/7M=\")","v":{"$error":"#VALUE!"}},{"$f":"AND(Syllabus!D20,\"AAAAAH7b/7Q=\")","v":{"$error":"#VALUE!"}},{"$f":"AND(Syllabus!E20,\"AAAAAH7b/7U=\")","v":{"$error":"#VALUE!"}},{"$f":"AND(Syllabus!F20,\"AAAAAH7b/7Y=\")","v":{"$error":"#VALUE!"}},{"$f":"AND(Syllabus!G20,\"AAAAAH7b/7c=\")","v":{"$error":"#VALUE!"}},{"$f":"IF(Syllabus!21:21,\"AAAAAH7b/7g=\",0)","v":0},{"$f":"AND(Syllabus!A21,\"AAAAAH7b/7k=\")","v":true},{"$f":"AND(Syllabus!B21,\"AAAAAH7b/7o=\")","v":{"$error":"#VALUE!"}},{"$f":"AND(Syllabus!C21,\"AAAAAH7b/7s=\")","v":{"$error":"#VALUE!"}},{"$f":"AND(Syllabus!D21,\"AAAAAH7b/7w=\")","v":{"$error":"#VALUE!"}},{"$f":"AND(Syllabus!E21,\"AAAAAH7b/70=\")","v":{"$error":"#VALUE!"}},{"$f":"AND(Syllabus!F21,\"AAAAAH7b/74=\")","v":{"$error":"#VALUE!"}},{"$f":"AND(Syllabus!G21,\"AAAAAH7b/78=\")","v":{"$error":"#VALUE!"}},{"$f":"IF(Syllabus!22:22,\"AAAAAH7b/8A=\",0)","v":0},{"$f":"AND(Syllabus!A22,\"AAAAAH7b/8E=\")","v":{"$error":"#VALUE!"}},{"$f":"AND(Syllabus!B22,\"AAAAAH7b/8I=\")","v":{"$error":"#VALUE!"}},{"$f":"AND(Syllabus!C22,\"AAAAAH7b/8M=\")","v":{"$error":"#VALUE!"}},{"$f":"AND(Syllabus!D22,\"AAAAAH7b/8Q=\")","v":{"$error":"#VALUE!"}},{"$f":"AND(Syllabus!E22,\"AAAAAH7b/8U=\")","v":{"$error":"#VALUE!"}},{"$f":"AND(Syllabus!F22,\"AAAAAH7b/8Y=\")","v":{"$error":"#VALUE!"}},{"$f":"AND(Syllabus!G22,\"AAAAAH7b/8c=\")","v":{"$error":"#VALUE!"}},{"$f":"IF(Syllabus!23:23,\"AAAAAH7b/8g=\",0)","v":0},{"$f":"AND(Syllabus!A23,\"AAAAAH7b/8k=\")","v":{"$error":"#VALUE!"}},{"$f":"AND(Syllabus!B23,\"AAAAAH7b/8o=\")","v":{"$error":"#VALUE!"}},{"$f":"AND(Syllabus!C23,\"AAAAAH7b/8s=\")","v":{"$error":"#VALUE!"}},{"$f":"AND(Syllabus!D23,\"AAAAAH7b/8w=\")","v":{"$error":"#VALUE!"}},{"$f":"AND(Syllabus!E23,\"AAAAAH7b/80=\")","v":{"$error":"#VALUE!"}},{"$f":"AND(Syllabus!F23,\"AAAAAH7b/84=\")","v":{"$error":"#VALUE!"}},{"$f":"AND(Syllabus!G23,\"AAAAAH7b/88=\")","v":{"$error":"#VALUE!"}},{"$f":"IF(Syllabus!24:24,\"AAAAAH7b/9A=\",0)","v":0},{"$f":"AND(Syllabus!A24,\"AAAAAH7b/9E=\")","v":{"$error":"#VALUE!"}},{"$f":"AND(Syllabus!B24,\"AAAAAH7b/9I=\")","v":{"$error":"#VALUE!"}},{"$f":"AND(Syllabus!C24,\"AAAAAH7b/9M=\")","v":{"$error":"#VALUE!"}},{"$f":"AND(Syllabus!D24,\"AAAAAH7b/9Q=\")","v":{"$error":"#VALUE!"}},{"$f":"AND(Syllabus!E24,\"AAAAAH7b/9U=\")","v":{"$error":"#VALUE!"}},{"$f":"AND(Syllabus!F24,\"AAAAAH7b/9Y=\")","v":{"$error":"#VALUE!"}},{"$f":"AND(Syllabus!G24,\"AAAAAH7b/9c=\")","v":{"$error":"#VALUE!"}},{"$f":"IF(Syllabus!25:25,\"AAAAAH7b/9g=\",0)","v":0},{"$f":"AND(Syllabus!A25,\"AAAAAH7b/9k=\")","v":true},{"$f":"AND(Syllabus!B25,\"AAAAAH7b/9o=\")","v":{"$error":"#VALUE!"}},{"$f":"AND(Syllabus!C25,\"AAAAAH7b/9s=\")","v":{"$error":"#VALUE!"}},{"$f":"AND(Syllabus!D25,\"AAAAAH7b/9w=\")","v":true},{"$f":"AND(Syllabus!E25,\"AAAAAH7b/90=\")","v":{"$error":"#VALUE!"}},{"$f":"AND(Syllabus!F25,\"AAAAAH7b/94=\")","v":{"$error":"#VALUE!"}},{"$f":"AND(Syllabus!G25,\"AAAAAH7b/98=\")","v":{"$error":"#VALUE!"}},{"$f":"IF(Syllabus!26:26,\"AAAAAH7b/+A=\",0)","v":0},{"$f":"AND(Syllabus!A26,\"AAAAAH7b/+E=\")","v":{"$error":"#VALUE!"}},{"$f":"AND(Syllabus!B26,\"AAAAAH7b/+I=\")","v":{"$error":"#VALUE!"}},{"$f":"AND(Syllabus!C26,\"AAAAAH7b/+M=\")","v":{"$error":"#VALUE!"}},{"$f":"AND(Syllabus!D26,\"AAAAAH7b/+Q=\")","v":{"$error":"#VALUE!"}},{"$f":"AND(Syllabus!E26,\"AAAAAH7b/+U=\")","v":{"$error":"#VALUE!"}},{"$f":"AND(Syllabus!F26,\"AAAAAH7b/+Y=\")","v":{"$error":"#VALUE!"}},{"$f":"AND(Syllabus!G26,\"AAAAAH7b/+c=\")","v":{"$error":"#VALUE!"}},{"$f":"IF(Syllabus!27:27,\"AAAAAH7b/+g=\",0)","v":0},{"$f":"AND(Syllabus!A27,\"AAAAAH7b/+k=\")","v":{"$error":"#VALUE!"}},{"$f":"AND(Syllabus!B27,\"AAAAAH7b/+o=\")","v":{"$error":"#VALUE!"}},{"$f":"AND(Syllabus!C27,\"AAAAAH7b/+s=\")","v":{"$error":"#VALUE!"}},{"$f":"AND(Syllabus!D27,\"AAAAAH7b/+w=\")","v":{"$error":"#VALUE!"}},{"$f":"AND(Syllabus!E27,\"AAAAAH7b/+0=\")","v":{"$error":"#VALUE!"}},{"$f":"AND(Syllabus!F27,\"AAAAAH7b/+4=\")","v":{"$error":"#VALUE!"}},{"$f":"AND(Syllabus!G27,\"AAAAAH7b/+8=\")","v":{"$error":"#VALUE!"}},{"$f":"IF(Syllabus!28:28,\"AAAAAH7b//A=\",0)","v":0},{"$f":"AND(Syllabus!A28,\"AAAAAH7b//E=\")","v":{"$error":"#VALUE!"}},{"$f":"AND(Syllabus!B28,\"AAAAAH7b//I=\")","v":{"$error":"#VALUE!"}},{"$f":"AND(Syllabus!C28,\"AAAAAH7b//M=\")","v":{"$error":"#VALUE!"}},{"$f":"AND(Syllabus!D28,\"AAAAAH7b//Q=\")","v":{"$error":"#VALUE!"}},{"$f":"AND(Syllabus!E28,\"AAAAAH7b//U=\")","v":{"$error":"#VALUE!"}},{"$f":"AND(Syllabus!F28,\"AAAAAH7b//Y=\")","v":{"$error":"#VALUE!"}},{"$f":"AND(Syllabus!G28,\"AAAAAH7b//c=\")","v":{"$error":"#VALUE!"}},{"$f":"IF(Syllabus!29:29,\"AAAAAH7b//g=\",0)","v":0},{"$f":"AND(Syllabus!A29,\"AAAAAH7b//k=\")","v":{"$error":"#VALUE!"}},{"$f":"AND(Syllabus!B29,\"AAAAAH7b//o=\")","v":{"$error":"#VALUE!"}},{"$f":"AND(Syllabus!C29,\"AAAAAH7b//s=\")","v":{"$error":"#VALUE!"}},{"$f":"AND(Syllabus!D29,\"AAAAAH7b//w=\")","v":{"$error":"#VALUE!"}},{"$f":"AND(Syllabus!E29,\"AAAAAH7b//0=\")","v":{"$error":"#VALUE!"}},{"$f":"AND(Syllabus!F29,\"AAAAAH7b//4=\")","v":{"$error":"#VALUE!"}},{"$f":"AND(Syllabus!G29,\"AAAAAH7b//8=\")","v":{"$error":"#VALUE!"}}]
[{"$f":"IF(Syllabus!30:30,\"AAAAAH/vfwA=\",0)","v":0},{"$f":"AND(Syllabus!A30,\"AAAAAH/vfwE=\")","v":{"$error":"#VALUE!"}},{"$f":"AND(Syllabus!B30,\"AAAAAH/vfwI=\")","v":{"$error":"#VALUE!"}},{"$f":"AND(Syllabus!C30,\"AAAAAH/vfwM=\")","v":{"$error":"#VALUE!"}},{"$f":"AND(Syllabus!D30,\"AAAAAH/vfwQ=\")","v":{"$error":"#VALUE!"}},{"$f":"AND(Syllabus!E30,\"AAAAAH/vfwU=\")","v":{"$error":"#VALUE!"}},{"$f":"AND(Syllabus!F30,\"AAAAAH/vfwY=\")","v":{"$error":"#VALUE!"}},{"$f":"AND(Syllabus!G30,\"AAAAAH/vfwc=\")","v":{"$error":"#VALUE!"}},{"$f":"IF(Syllabus!31:31,\"AAAAAH/vfwg=\",0)","v":0},{"$f":"AND(Syllabus!A31,\"AAAAAH/vfwk=\")","v":{"$error":"#VALUE!"}},{"$f":"AND(Syllabus!B31,\"AAAAAH/vfwo=\")","v":{"$error":"#VALUE!"}},{"$f":"AND(Syllabus!C31,\"AAAAAH/vfws=\")","v":{"$error":"#VALUE!"}},{"$f":"AND(Syllabus!D31,\"AAAAAH/vfww=\")","v":{"$error":"#VALUE!"}},{"$f":"AND(Syllabus!E31,\"AAAAAH/vfw0=\")","v":{"$error":"#VALUE!"}},{"$f":"AND(Syllabus!F31,\"AAAAAH/vfw4=\")","v":{"$error":"#VALUE!"}},{"$f":"AND(Syllabus!G31,\"AAAAAH/vfw8=\")","v":{"$error":"#VALUE!"}},{"$f":"IF(Syllabus!#REF!,\"AAAAAH/vfxA=\",0)","v":{"$error":"#REF!"}},{"$f":"IF(Syllabus!A:A,\"AAAAAH/vfxE=\",0)","v":"AAAAAH/vfxE="},{"$f":"IF(Syllabus!B:B,\"AAAAAH/vfxI=\",0)","v":{"$error":"#VALUE!"}},{"$f":"IF(Syllabus!C:C,\"AAAAAH/vfxM=\",0)","v":{"$error":"#VALUE!"}},{"$f":"IF(Syllabus!D:D,\"AAAAAH/vfxQ=\",0)","v":0},{"$f":"IF(Syllabus!E:E,\"AAAAAH/vfxU=\",0)","v":0},{"$f":"IF(Syllabus!F:F,\"AAAAAH/vfxY=\",0)","v":0},{"$f":"IF(Syllabus!G:G,\"AAAAAH/vfxc=\",0)","v":0},{"$f":"IF(#REF!,\"AAAAAH/vfxg=\",0)","v":{"$error":"#REF!"}},{"$f":"AND(#REF!,\"AAAAAH/vfxk=\")","v":{"$error":"#REF!"}},{"$f":"AND(#REF!,\"AAAAAH/vfxo=\")","v":{"$error":"#REF!"}},{"$f":"AND(#REF!,\"AAAAAH/vfxs=\")","v":{"$error":"#REF!"}},{"$f":"AND(#REF!,\"AAAAAH/vfxw=\")","v":{"$error":"#REF!"}},{"$f":"AND(#REF!,\"AAAAAH/vfx0=\")","v":{"$error":"#REF!"}},{"$f":"AND(#REF!,\"AAAAAH/vfx4=\")","v":{"$error":"#REF!"}},{"$f":"IF(#REF!,\"AAAAAH/vfx8=\",0)","v":{"$error":"#REF!"}},{"$f":"AND(#REF!,\"AAAAAH/vfyA=\")","v":{"$error":"#REF!"}},{"$f":"AND(#REF!,\"AAAAAH/vfyE=\")","v":{"$error":"#REF!"}},{"$f":"AND(#REF!,\"AAAAAH/vfyI=\")","v":{"$error":"#REF!"}},{"$f":"AND(#REF!,\"AAAAAH/vfyM=\")","v":{"$error":"#REF!"}},{"$f":"AND(#REF!,\"AAAAAH/vfyQ=\")","v":{"$error":"#REF!"}},{"$f":"AND(#REF!,\"AAAAAH/vfyU=\")","v":{"$error":"#REF!"}},{"$f":"IF(#REF!,\"AAAAAH/vfyY=\",0)","v":{"$error":"#REF!"}},{"$f":"AND(#REF!,\"AAAAAH/vfyc=\")","v":{"$error":"#REF!"}},{"$f":"AND(#REF!,\"AAAAAH/vfyg=\")","v":{"$error":"#REF!"}},{"$f":"AND(#REF!,\"AAAAAH/vfyk=\")","v":{"$error":"#REF!"}},{"$f":"AND(#REF!,\"AAAAAH/vfyo=\")","v":{"$error":"#REF!"}},{"$f":"AND(#REF!,\"AAAAAH/vfys=\")","v":{"$error":"#REF!"}},{"$f":"AND(#REF!,\"AAAAAH/vfyw=\")","v":{"$error":"#REF!"}},{"$f":"IF(#REF!,\"AAAAAH/vfy0=\",0)","v":{"$error":"#REF!"}},{"$f":"AND(#REF!,\"AAAAAH/vfy4=\")","v":{"$error":"#REF!"}},{"$f":"AND(#REF!,\"AAAAAH/vfy8=\")","v":{"$error":"#REF!"}},{"$f":"AND(#REF!,\"AAAAAH/vfzA=\")","v":{"$error":"#REF!"}},{"$f":"AND(#REF!,\"AAAAAH/vfzE=\")","v":{"$error":"#REF!"}},{"$f":"AND(#REF!,\"AAAAAH/vfzI=\")","v":{"$error":"#REF!"}},{"$f":"AND(#REF!,\"AAAAAH/vfzM=\")","v":{"$error":"#REF!"}},{"$f":"IF(#REF!,\"AAAAAH/vfzQ=\",0)","v":{"$error":"#REF!"}},{"$f":"AND(#REF!,\"AAAAAH/vfzU=\")","v":{"$error":"#REF!"}},{"$f":"AND(#REF!,\"AAAAAH/vfzY=\")","v":{"$error":"#REF!"}},{"$f":"AND(#REF!,\"AAAAAH/vfzc=\")","v":{"$error":"#REF!"}},{"$f":"AND(#REF!,\"AAAAAH/vfzg=\")","v":{"$error":"#REF!"}},{"$f":"AND(#REF!,\"AAAAAH/vfzk=\")","v":{"$error":"#REF!"}},{"$f":"AND(#REF!,\"AAAAAH/vfzo=\")","v":{"$error":"#REF!"}},{"$f":"IF(#REF!,\"AAAAAH/vfzs=\",0)","v":{"$error":"#REF!"}},{"$f":"AND(#REF!,\"AAAAAH/vfzw=\")","v":{"$error":"#REF!"}},{"$f":"AND(#REF!,\"AAAAAH/vfz0=\")","v":{"$error":"#REF!"}},{"$f":"AND(#REF!,\"AAAAAH/vfz4=\")","v":{"$error":"#REF!"}},{"$f":"AND(#REF!,\"AAAAAH/vfz8=\")","v":{"$error":"#REF!"}},{"$f":"AND(#REF!,\"AAAAAH/vf0A=\")","v":{"$error":"#REF!"}},{"$f":"AND(#REF!,\"AAAAAH/vf0E=\")","v":{"$error":"#REF!"}},{"$f":"IF(#REF!,\"AAAAAH/vf0I=\",0)","v":{"$error":"#REF!"}},{"$f":"AND(#REF!,\"AAAAAH/vf0M=\")","v":{"$error":"#REF!"}},{"$f":"AND(#REF!,\"AAAAAH/vf0Q=\")","v":{"$error":"#REF!"}},{"$f":"AND(#REF!,\"AAAAAH/vf0U=\")","v":{"$error":"#REF!"}},{"$f":"AND(#REF!,\"AAAAAH/vf0Y=\")","v":{"$error":"#REF!"}},{"$f":"AND(#REF!,\"AAAAAH/vf0c=\")","v":{"$error":"#REF!"}},{"$f":"AND(#REF!,\"AAAAAH/vf0g=\")","v":{"$error":"#REF!"}},{"$f":"IF(#REF!,\"AAAAAH/vf0k=\",0)","v":{"$error":"#REF!"}},{"$f":"AND(#REF!,\"AAAAAH/vf0o=\")","v":{"$error":"#REF!"}},{"$f":"AND(#REF!,\"AAAAAH/vf0s=\")","v":{"$error":"#REF!"}},{"$f":"AND(#REF!,\"AAAAAH/vf0w=\")","v":{"$error":"#REF!"}},{"$f":"AND(#REF!,\"AAAAAH/vf00=\")","v":{"$error":"#REF!"}},{"$f":"AND(#REF!,\"AAAAAH/vf04=\")","v":{"$error":"#REF!"}},{"$f":"AND(#REF!,\"AAAAAH/vf08=\")","v":{"$error":"#REF!"}},{"$f":"IF(#REF!,\"AAAAAH/vf1A=\",0)","v":{"$error":"#REF!"}},{"$f":"AND(#REF!,\"AAAAAH/vf1E=\")","v":{"$error":"#REF!"}},{"$f":"AND(#REF!,\"AAAAAH/vf1I=\")","v":{"$error":"#REF!"}},{"$f":"AND(#REF!,\"AAAAAH/vf1M=\")","v":{"$error":"#REF!"}},{"$f":"AND(#REF!,\"AAAAAH/vf1Q=\")","v":{"$error":"#REF!"}},{"$f":"AND(#REF!,\"AAAAAH/vf1U=\")","v":{"$error":"#REF!"}},{"$f":"AND(#REF!,\"AAAAAH/vf1Y=\")","v":{"$error":"#REF!"}},{"$f":"IF(#REF!,\"AAAAAH/vf1c=\",0)","v":{"$error":"#REF!"}},{"$f":"AND(#REF!,\"AAAAAH/vf1g=\")","v":{"$error":"#REF!"}},{"$f":"AND(#REF!,\"AAAAAH/vf1k=\")","v":{"$error":"#REF!"}},{"$f":"AND(#REF!,\"AAAAAH/vf1o=\")","v":{"$error":"#REF!"}},{"$f":"AND(#REF!,\"AAAAAH/vf1s=\")","v":{"$error":"#REF!"}},{"$f":"AND(#REF!,\"AAAAAH/vf1w=\")","v":{"$error":"#REF!"}},{"$f":"AND(#REF!,\"AAAAAH/vf10=\")","v":{"$error":"#REF!"}},{"$f":"IF(#REF!,\"AAAAAH/vf14=\",0)","v":{"$error":"#REF!"}},{"$f":"AND(#REF!,\"AAAAAH/vf18=\")","v":{"$error":"#REF!"}},{"$f":"AND(#REF!,\"AAAAAH/vf2A=\")","v":{"$error":"#REF!"}},{"$f":"AND(#REF!,\"AAAAAH/vf2E=\")","v":{"$error":"#REF!"}},{"$f":"AND(#REF!,\"AAAAAH/vf2I=\")","v":{"$error":"#REF!"}},{"$f":"AND(#REF!,\"AAAAAH/vf2M=\")","v":{"$error":"#REF!"}},{"$f":"AND(#REF!,\"AAAAAH/vf2Q=\")","v":{"$error":"#REF!"}},{"$f":"IF(#REF!,\"AAAAAH/vf2U=\",0)","v":{"$error":"#REF!"}},{"$f":"AND(#REF!,\"AAAAAH/vf2Y=\")","v":{"$error":"#REF!"}},{"$f":"AND(#REF!,\"AAAAAH/vf2c=\")","v":{"$error":"#REF!"}},{"$f":"AND(#REF!,\"AAAAAH/vf2g=\")","v":{"$error":"#REF!"}},{"$f":"AND(#REF!,\"AAAAAH/vf2k=\")","v":{"$error":"#REF!"}},{"$f":"AND(#REF!,\"AAAAAH/vf2o=\")","v":{"$error":"#REF!"}},{"$f":"AND(#REF!,\"AAAAAH/vf2s=\")","v":{"$error":"#REF!"}},{"$f":"IF(#REF!,\"AAAAAH/vf2w=\",0)","v":{"$error":"#REF!"}},{"$f":"AND(#REF!,\"AAAAAH/vf20=\")","v":{"$error":"#REF!"}},{"$f":"AND(#REF!,\"AAAAAH/vf24=\")","v":{"$error":"#REF!"}},{"$f":"AND(#REF!,\"AAAAAH/vf28=\")","v":{"$error":"#REF!"}},{"$f":"AND(#REF!,\"AAAAAH/vf3A=\")","v":{"$error":"#REF!"}},{"$f":"AND(#REF!,\"AAAAAH/vf3E=\")","v":{"$error":"#REF!"}},{"$f":"AND(#REF!,\"AAAAAH/vf3I=\")","v":{"$error":"#REF!"}},{"$f":"IF(#REF!,\"AAAAAH/vf3M=\",0)","v":{"$error":"#REF!"}},{"$f":"AND(#REF!,\"AAAAAH/vf3Q=\")","v":{"$error":"#REF!"}},{"$f":"AND(#REF!,\"AAAAAH/vf3U=\")","v":{"$error":"#REF!"}},{"$f":"AND(#REF!,\"AAAAAH/vf3Y=\")","v":{"$error":"#REF!"}},{"$f":"AND(#REF!,\"AAAAAH/vf3c=\")","v":{"$error":"#REF!"}},{"$f":"AND(#REF!,\"AAAAAH/vf3g=\")","v":{"$error":"#REF!"}},{"$f":"AND(#REF!,\"AAAAAH/vf3k=\")","v":{"$error":"#REF!"}},{"$f":"IF(#REF!,\"AAAAAH/vf3o=\",0)","v":{"$error":"#REF!"}},{"$f":"AND(#REF!,\"AAAAAH/vf3s=\")","v":{"$error":"#REF!"}},{"$f":"AND(#REF!,\"AAAAAH/vf3w=\")","v":{"$error":"#REF!"}},{"$f":"AND(#REF!,\"AAAAAH/vf30=\")","v":{"$error":"#REF!"}},{"$f":"AND(#REF!,\"AAAAAH/vf34=\")","v":{"$error":"#REF!"}},{"$f":"AND(#REF!,\"AAAAAH/vf38=\")","v":{"$error":"#REF!"}},{"$f":"AND(#REF!,\"AAAAAH/vf4A=\")","v":{"$error":"#REF!"}},{"$f":"IF(#REF!,\"AAAAAH/vf4E=\",0)","v":{"$error":"#REF!"}},{"$f":"AND(#REF!,\"AAAAAH/vf4I=\")","v":{"$error":"#REF!"}},{"$f":"AND(#REF!,\"AAAAAH/vf4M=\")","v":{"$error":"#REF!"}},{"$f":"AND(#REF!,\"AAAAAH/vf4Q=\")","v":{"$error":"#REF!"}},{"$f":"AND(#REF!,\"AAAAAH/vf4U=\")","v":{"$error":"#REF!"}},{"$f":"AND(#REF!,\"AAAAAH/vf4Y=\")","v":{"$error":"#REF!"}},{"$f":"AND(#REF!,\"AAAAAH/vf4c=\")","v":{"$error":"#REF!"}},{"$f":"IF(#REF!,\"AAAAAH/vf4g=\",0)","v":{"$error":"#REF!"}},{"$f":"AND(#REF!,\"AAAAAH/vf4k=\")","v":{"$error":"#REF!"}},{"$f":"AND(#REF!,\"AAAAAH/vf4o=\")","v":{"$error":"#REF!"}},{"$f":"AND(#REF!,\"AAAAAH/vf4s=\")","v":{"$error":"#REF!"}},{"$f":"AND(#REF!,\"AAAAAH/vf4w=\")","v":{"$error":"#REF!"}},{"$f":"AND(#REF!,\"AAAAAH/vf40=\")","v":{"$error":"#REF!"}},{"$f":"AND(#REF!,\"AAAAAH/vf44=\")","v":{"$error":"#REF!"}},{"$f":"IF(#REF!,\"AAAAAH/vf48=\",0)","v":{"$error":"#REF!"}},{"$f":"AND(#REF!,\"AAAAAH/vf5A=\")","v":{"$error":"#REF!"}},{"$f":"AND(#REF!,\"AAAAAH/vf5E=\")","v":{"$error":"#REF!"}},{"$f":"AND(#REF!,\"AAAAAH/vf5I=\")","v":{"$error":"#REF!"}},{"$f":"AND(#REF!,\"AAAAAH/vf5M=\")","v":{"$error":"#REF!"}},{"$f":"AND(#REF!,\"AAAAAH/vf5Q=\")","v":{"$error":"#REF!"}},{"$f":"AND(#REF!,\"AAAAAH/vf5U=\")","v":{"$error":"#REF!"}},{"$f":"IF(#REF!,\"AAAAAH/vf5Y=\",0)","v":{"$error":"#REF!"}},{"$f":"AND(#REF!,\"AAAAAH/vf5c=\")","v":{"$error":"#REF!"}},{"$f":"AND(#REF!,\"AAAAAH/vf5g=\")","v":{"$error":"#REF!"}},{"$f":"AND(#REF!,\"AAAAAH/vf5k=\")","v":{"$error":"#REF!"}},{"$f":"AND(#REF!,\"AAAAAH/vf5o=\")","v":{"$error":"#REF!"}},{"$f":"AND(#REF!,\"AAAAAH/vf5s=\")","v":{"$error":"#REF!"}},{"$f":"AND(#REF!,\"AAAAAH/vf5w=\")","v":{"$error":"#REF!"}},{"$f":"IF(#REF!,\"AAAAAH/vf50=\",0)","v":{"$error":"#REF!"}},{"$f":"AND(#REF!,\"AAAAAH/vf54=\")","v":{"$error":"#REF!"}},{"$f":"AND(#REF!,\"AAAAAH/vf58=\")","v":{"$error":"#REF!"}},{"$f":"AND(#REF!,\"AAAAAH/vf6A=\")","v":{"$error":"#REF!"}},{"$f":"AND(#REF!,\"AAAAAH/vf6E=\")","v":{"$error":"#REF!"}},{"$f":"AND(#REF!,\"AAAAAH/vf6I=\")","v":{"$error":"#REF!"}},{"$f":"AND(#REF!,\"AAAAAH/vf6M=\")","v":{"$error":"#REF!"}},{"$f":"IF(#REF!,\"AAAAAH/vf6Q=\",0)","v":{"$error":"#REF!"}},{"$f":"AND(#REF!,\"AAAAAH/vf6U=\")","v":{"$error":"#REF!"}},{"$f":"AND(#REF!,\"AAAAAH/vf6Y=\")","v":{"$error":"#REF!"}},{"$f":"AND(#REF!,\"AAAAAH/vf6c=\")","v":{"$error":"#REF!"}},{"$f":"AND(#REF!,\"AAAAAH/vf6g=\")","v":{"$error":"#REF!"}},{"$f":"AND(#REF!,\"AAAAAH/vf6k=\")","v":{"$error":"#REF!"}},{"$f":"AND(#REF!,\"AAAAAH/vf6o=\")","v":{"$error":"#REF!"}},{"$f":"IF(#REF!,\"AAAAAH/vf6s=\",0)","v":{"$error":"#REF!"}},{"$f":"AND(#REF!,\"AAAAAH/vf6w=\")","v":{"$error":"#REF!"}},{"$f":"AND(#REF!,\"AAAAAH/vf60=\")","v":{"$error":"#REF!"}},{"$f":"AND(#REF!,\"AAAAAH/vf64=\")","v":{"$error":"#REF!"}},{"$f":"AND(#REF!,\"AAAAAH/vf68=\")","v":{"$error":"#REF!"}},{"$f":"AND(#REF!,\"AAAAAH/vf7A=\")","v":{"$error":"#REF!"}},{"$f":"AND(#REF!,\"AAAAAH/vf7E=\")","v":{"$error":"#REF!"}},{"$f":"IF(#REF!,\"AAAAAH/vf7I=\",0)","v":{"$error":"#REF!"}},{"$f":"AND(#REF!,\"AAAAAH/vf7M=\")","v":{"$error":"#REF!"}},{"$f":"AND(#REF!,\"AAAAAH/vf7Q=\")","v":{"$error":"#REF!"}},{"$f":"AND(#REF!,\"AAAAAH/vf7U=\")","v":{"$error":"#REF!"}},{"$f":"AND(#REF!,\"AAAAAH/vf7Y=\")","v":{"$error":"#REF!"}},{"$f":"AND(#REF!,\"AAAAAH/vf7c=\")","v":{"$error":"#REF!"}},{"$f":"AND(#REF!,\"AAAAAH/vf7g=\")","v":{"$error":"#REF!"}},{"$f":"IF(#REF!,\"AAAAAH/vf7k=\",0)","v":{"$error":"#REF!"}},{"$f":"AND(#REF!,\"AAAAAH/vf7o=\")","v":{"$error":"#REF!"}},{"$f":"AND(#REF!,\"AAAAAH/vf7s=\")","v":{"$error":"#REF!"}},{"$f":"AND(#REF!,\"AAAAAH/vf7w=\")","v":{"$error":"#REF!"}},{"$f":"AND(#REF!,\"AAAAAH/vf70=\")","v":{"$error":"#REF!"}},{"$f":"AND(#REF!,\"AAAAAH/vf74=\")","v":{"$error":"#REF!"}},{"$f":"AND(#REF!,\"AAAAAH/vf78=\")","v":{"$error":"#REF!"}},{"$f":"IF(#REF!,\"AAAAAH/vf8A=\",0)","v":{"$error":"#REF!"}},{"$f":"AND(#REF!,\"AAAAAH/vf8E=\")","v":{"$error":"#REF!"}},{"$f":"AND(#REF!,\"AAAAAH/vf8I=\")","v":{"$error":"#REF!"}},{"$f":"AND(#REF!,\"AAAAAH/vf8M=\")","v":{"$error":"#REF!"}},{"$f":"AND(#REF!,\"AAAAAH/vf8Q=\")","v":{"$error":"#REF!"}},{"$f":"AND(#REF!,\"AAAAAH/vf8U=\")","v":{"$error":"#REF!"}},{"$f":"AND(#REF!,\"AAAAAH/vf8Y=\")","v":{"$error":"#REF!"}},{"$f":"IF(#REF!,\"AAAAAH/vf8c=\",0)","v":{"$error":"#REF!"}},{"$f":"AND(#REF!,\"AAAAAH/vf8g=\")","v":{"$error":"#REF!"}},{"$f":"AND(#REF!,\"AAAAAH/vf8k=\")","v":{"$error":"#REF!"}},{"$f":"AND(#REF!,\"AAAAAH/vf8o=\")","v":{"$error":"#REF!"}},{"$f":"AND(#REF!,\"AAAAAH/vf8s=\")","v":{"$error":"#REF!"}},{"$f":"AND(#REF!,\"AAAAAH/vf8w=\")","v":{"$error":"#REF!"}},{"$f":"AND(#REF!,\"AAAAAH/vf80=\")","v":{"$error":"#REF!"}},{"$f":"IF(#REF!,\"AAAAAH/vf84=\",0)","v":{"$error":"#REF!"}},{"$f":"AND(#REF!,\"AAAAAH/vf88=\")","v":{"$error":"#REF!"}},{"$f":"AND(#REF!,\"AAAAAH/vf9A=\")","v":{"$error":"#REF!"}},{"$f":"AND(#REF!,\"AAAAAH/vf9E=\")","v":{"$error":"#REF!"}},{"$f":"AND(#REF!,\"AAAAAH/vf9I=\")","v":{"$error":"#REF!"}},{"$f":"AND(#REF!,\"AAAAAH/vf9M=\")","v":{"$error":"#REF!"}},{"$f":"AND(#REF!,\"AAAAAH/vf9Q=\")","v":{"$error":"#REF!"}},{"$f":"IF(#REF!,\"AAAAAH/vf9U=\",0)","v":{"$error":"#REF!"}},{"$f":"AND(#REF!,\"AAAAAH/vf9Y=\")","v":{"$error":"#REF!"}},{"$f":"AND(#REF!,\"AAAAAH/vf9c=\")","v":{"$error":"#REF!"}},{"$f":"AND(#REF!,\"AAAAAH/vf9g=\")","v":{"$error":"#REF!"}},{"$f":"AND(#REF!,\"AAAAAH/vf9k=\")","v":{"$error":"#REF!"}},{"$f":"AND(#REF!,\"AAAAAH/vf9o=\")","v":{"$error":"#REF!"}},{"$f":"AND(#REF!,\"AAAAAH/vf9s=\")","v":{"$error":"#REF!"}},{"$f":"IF(#REF!,\"AAAAAH/vf9w=\",0)","v":{"$error":"#REF!"}},{"$f":"AND(#REF!,\"AAAAAH/vf90=\")","v":{"$error":"#REF!"}},{"$f":"AND(#REF!,\"AAAAAH/vf94=\")","v":{"$error":"#REF!"}},{"$f":"AND(#REF!,\"AAAAAH/vf98=\")","v":{"$error":"#REF!"}},{"$f":"AND(#REF!,\"AAAAAH/vf+A=\")","v":{"$error":"#REF!"}},{"$f":"AND(#REF!,\"AAAAAH/vf+E=\")","v":{"$error":"#REF!"}},{"$f":"AND(#REF!,\"AAAAAH/vf+I=\")","v":{"$error":"#REF!"}},{"$f":"IF(#REF!,\"AAAAAH/vf+M=\",0)","v":{"$error":"#REF!"}},{"$f":"AND(#REF!,\"AAAAAH/vf+Q=\")","v":{"$error":"#REF!"}},{"$f":"AND(#REF!,\"AAAAAH/vf+U=\")","v":{"$error":"#REF!"}},{"$f":"AND(#REF!,\"AAAAAH/vf+Y=\")","v":{"$error":"#REF!"}},{"$f":"AND(#REF!,\"AAAAAH/vf+c=\")","v":{"$error":"#REF!"}},{"$f":"AND(#REF!,\"AAAAAH/vf+g=\")","v":{"$error":"#REF!"}},{"$f":"AND(#REF!,\"AAAAAH/vf+k=\")","v":{"$error":"#REF!"}},{"$f":"IF(#REF!,\"AAAAAH/vf+o=\",0)","v":{"$error":"#REF!"}},{"$f":"AND(#REF!,\"AAAAAH/vf+s=\")","v":{"$error":"#REF!"}},{"$f":"AND(#REF!,\"AAAAAH/vf+w=\")","v":{"$error":"#REF!"}},{"$f":"AND(#REF!,\"AAAAAH/vf+0=\")","v":{"$error":"#REF!"}},{"$f":"AND(#REF!,\"AAAAAH/vf+4=\")","v":{"$error":"#REF!"}},{"$f":"AND(#REF!,\"AAAAAH/vf+8=\")","v":{"$error":"#REF!"}},{"$f":"AND(#REF!,\"AAAAAH/vf/A=\")","v":{"$error":"#REF!"}},{"$f":"IF(#REF!,\"AAAAAH/vf/E=\",0)","v":{"$error":"#REF!"}},{"$f":"AND(#REF!,\"AAAAAH/vf/I=\")","v":{"$error":"#REF!"}},{"$f":"AND(#REF!,\"AAAAAH/vf/M=\")","v":{"$error":"#REF!"}},{"$f":"AND(#REF!,\"AAAAAH/vf/Q=\")","v":{"$error":"#REF!"}},{"$f":"AND(#REF!,\"AAAAAH/vf/U=\")","v":{"$error":"#REF!"}},{"$f":"AND(#REF!,\"AAAAAH/vf/Y=\")","v":{"$error":"#REF!"}},{"$f":"AND(#REF!,\"AAAAAH/vf/c=\")","v":{"$error":"#REF!"}},{"$f":"IF(#REF!,\"AAAAAH/vf/g=\",0)","v":{"$error":"#REF!"}},{"$f":"AND(#REF!,\"AAAAAH/vf/k=\")","v":{"$error":"#REF!"}},{"$f":"AND(#REF!,\"AAAAAH/vf/o=\")","v":{"$error":"#REF!"}},{"$f":"AND(#REF!,\"AAAAAH/vf/s=\")","v":{"$error":"#REF!"}},{"$f":"AND(#REF!,\"AAAAAH/vf/w=\")","v":{"$error":"#REF!"}},{"$f":"AND(#REF!,\"AAAAAH/vf/0=\")","v":{"$error":"#REF!"}},{"$f":"AND(#REF!,\"AAAAAH/vf/4=\")","v":{"$error":"#REF!"}},{"$f":"IF(#REF!,\"AAAAAH/vf/8=\",0)","v":{"$error":"#REF!"}}]
[{"$f":"AND(#REF!,\"AAAAABPz/wA=\")","v":{"$error":"#REF!"}},{"$f":"AND(#REF!,\"AAAAABPz/wE=\")","v":{"$error":"#REF!"}},{"$f":"AND(#REF!,\"AAAAABPz/wI=\")","v":{"$error":"#REF!"}},{"$f":"AND(#REF!,\"AAAAABPz/wM=\")","v":{"$error":"#REF!"}},{"$f":"AND(#REF!,\"AAAAABPz/wQ=\")","v":{"$error":"#REF!"}},{"$f":"AND(#REF!,\"AAAAABPz/wU=\")","v":{"$error":"#REF!"}},{"$f":"IF(#REF!,\"AAAAABPz/wY=\",0)","v":{"$error":"#REF!"}},{"$f":"AND(#REF!,\"AAAAABPz/wc=\")","v":{"$error":"#REF!"}},{"$f":"AND(#REF!,\"AAAAABPz/wg=\")","v":{"$error":"#REF!"}},{"$f":"AND(#REF!,\"AAAAABPz/wk=\")","v":{"$error":"#REF!"}},{"$f":"AND(#REF!,\"AAAAABPz/wo=\")","v":{"$error":"#REF!"}},{"$f":"AND(#REF!,\"AAAAABPz/ws=\")","v":{"$error":"#REF!"}},{"$f":"AND(#REF!,\"AAAAABPz/ww=\")","v":{"$error":"#REF!"}},{"$f":"IF(#REF!,\"AAAAABPz/w0=\",0)","v":{"$error":"#REF!"}},{"$f":"AND(#REF!,\"AAAAABPz/w4=\")","v":{"$error":"#REF!"}},{"$f":"AND(#REF!,\"AAAAABPz/w8=\")","v":{"$error":"#REF!"}},{"$f":"AND(#REF!,\"AAAAABPz/xA=\")","v":{"$error":"#REF!"}},{"$f":"AND(#REF!,\"AAAAABPz/xE=\")","v":{"$error":"#REF!"}},{"$f":"AND(#REF!,\"AAAAABPz/xI=\")","v":{"$error":"#REF!"}},{"$f":"AND(#REF!,\"AAAAABPz/xM=\")","v":{"$error":"#REF!"}},{"$f":"IF(#REF!,\"AAAAABPz/xQ=\",0)","v":{"$error":"#REF!"}},{"$f":"AND(#REF!,\"AAAAABPz/xU=\")","v":{"$error":"#REF!"}},{"$f":"AND(#REF!,\"AAAAABPz/xY=\")","v":{"$error":"#REF!"}},{"$f":"AND(#REF!,\"AAAAABPz/xc=\")","v":{"$error":"#REF!"}},{"$f":"AND(#REF!,\"AAAAABPz/xg=\")","v":{"$error":"#REF!"}},{"$f":"AND(#REF!,\"AAAAABPz/xk=\")","v":{"$error":"#REF!"}},{"$f":"AND(#REF!,\"AAAAABPz/xo=\")","v":{"$error":"#REF!"}},{"$f":"IF(#REF!,\"AAAAABPz/xs=\",0)","v":{"$error":"#REF!"}},{"$f":"AND(#REF!,\"AAAAABPz/xw=\")","v":{"$error":"#REF!"}},{"$f":"AND(#REF!,\"AAAAABPz/x0=\")","v":{"$error":"#REF!"}},{"$f":"AND(#REF!,\"AAAAABPz/x4=\")","v":{"$error":"#REF!"}},{"$f":"AND(#REF!,\"AAAAABPz/x8=\")","v":{"$error":"#REF!"}},{"$f":"AND(#REF!,\"AAAAABPz/yA=\")","v":{"$error":"#REF!"}},{"$f":"AND(#REF!,\"AAAAABPz/yE=\")","v":{"$error":"#REF!"}},{"$f":"IF(#REF!,\"AAAAABPz/yI=\",0)","v":{"$error":"#REF!"}},{"$f":"AND(#REF!,\"AAAAABPz/yM=\")","v":{"$error":"#REF!"}},{"$f":"AND(#REF!,\"AAAAABPz/yQ=\")","v":{"$error":"#REF!"}},{"$f":"AND(#REF!,\"AAAAABPz/yU=\")","v":{"$error":"#REF!"}},{"$f":"AND(#REF!,\"AAAAABPz/yY=\")","v":{"$error":"#REF!"}},{"$f":"AND(#REF!,\"AAAAABPz/yc=\")","v":{"$error":"#REF!"}},{"$f":"AND(#REF!,\"AAAAABPz/yg=\")","v":{"$error":"#REF!"}},{"$f":"IF(#REF!,\"AAAAABPz/yk=\",0)","v":{"$error":"#REF!"}},{"$f":"AND(#REF!,\"AAAAABPz/yo=\")","v":{"$error":"#REF!"}},{"$f":"AND(#REF!,\"AAAAABPz/ys=\")","v":{"$error":"#REF!"}},{"$f":"AND(#REF!,\"AAAAABPz/yw=\")","v":{"$error":"#REF!"}},{"$f":"AND(#REF!,\"AAAAABPz/y0=\")","v":{"$error":"#REF!"}},{"$f":"AND(#REF!,\"AAAAABPz/y4=\")","v":{"$error":"#REF!"}},{"$f":"AND(#REF!,\"AAAAABPz/y8=\")","v":{"$error":"#REF!"}},{"$f":"IF(#REF!,\"AAAAABPz/zA=\",0)","v":{"$error":"#REF!"}},{"$f":"AND(#REF!,\"AAAAABPz/zE=\")","v":{"$error":"#REF!"}},{"$f":"AND(#REF!,\"AAAAABPz/zI=\")","v":{"$error":"#REF!"}},{"$f":"AND(#REF!,\"AAAAABPz/zM=\")","v":{"$error":"#REF!"}},{"$f":"AND(#REF!,\"AAAAABPz/zQ=\")","v":{"$error":"#REF!"}},{"$f":"AND(#REF!,\"AAAAABPz/zU=\")","v":{"$error":"#REF!"}},{"$f":"AND(#REF!,\"AAAAABPz/zY=\")","v":{"$error":"#REF!"}},{"$f":"IF(#REF!,\"AAAAABPz/zc=\",0)","v":{"$error":"#REF!"}},{"$f":"AND(#REF!,\"AAAAABPz/zg=\")","v":{"$error":"#REF!"}},{"$f":"AND(#REF!,\"AAAAABPz/zk=\")","v":{"$error":"#REF!"}},{"$f":"AND(#REF!,\"AAAAABPz/zo=\")","v":{"$error":"#REF!"}},{"$f":"AND(#REF!,\"AAAAABPz/zs=\")","v":{"$error":"#REF!"}},{"$f":"AND(#REF!,\"AAAAABPz/zw=\")","v":{"$error":"#REF!"}},{"$f":"AND(#REF!,\"AAAAABPz/z0=\")","v":{"$error":"#REF!"}},{"$f":"IF(#REF!,\"AAAAABPz/z4=\",0)","v":{"$error":"#REF!"}},{"$f":"AND(#REF!,\"AAAAABPz/z8=\")","v":{"$error":"#REF!"}},{"$f":"AND(#REF!,\"AAAAABPz/0A=\")","v":{"$error":"#REF!"}},{"$f":"AND(#REF!,\"AAAAABPz/0E=\")","v":{"$error":"#REF!"}},{"$f":"AND(#REF!,\"AAAAABPz/0I=\")","v":{"$error":"#REF!"}},{"$f":"AND(#REF!,\"AAAAABPz/0M=\")","v":{"$error":"#REF!"}},{"$f":"AND(#REF!,\"AAAAABPz/0Q=\")","v":{"$error":"#REF!"}},{"$f":"IF(#REF!,\"AAAAABPz/0U=\",0)","v":{"$error":"#REF!"}},{"$f":"AND(#REF!,\"AAAAABPz/0Y=\")","v":{"$error":"#REF!"}},{"$f":"AND(#REF!,\"AAAAABPz/0c=\")","v":{"$error":"#REF!"}},{"$f":"AND(#REF!,\"AAAAABPz/0g=\")","v":{"$error":"#REF!"}},{"$f":"AND(#REF!,\"AAAAABPz/0k=\")","v":{"$error":"#REF!"}},{"$f":"AND(#REF!,\"AAAAABPz/0o=\")","v":{"$error":"#REF!"}},{"$f":"AND(#REF!,\"AAAAABPz/0s=\")","v":{"$error":"#REF!"}},{"$f":"IF(#REF!,\"AAAAABPz/0w=\",0)","v":{"$error":"#REF!"}},{"$f":"AND(#REF!,\"AAAAABPz/00=\")","v":{"$error":"#REF!"}},{"$f":"AND(#REF!,\"AAAAABPz/04=\")","v":{"$error":"#REF!"}},{"$f":"AND(#REF!,\"AAAAABPz/08=\")","v":{"$error":"#REF!"}},{"$f":"AND(#REF!,\"AAAAABPz/1A=\")","v":{"$error":"#REF!"}},{"$f":"AND(#REF!,\"AAAAABPz/1E=\")","v":{"$error":"#REF!"}},{"$f":"AND(#REF!,\"AAAAABPz/1I=\")","v":{"$error":"#REF!"}},{"$f":"IF(#REF!,\"AAAAABPz/1M=\",0)","v":{"$error":"#REF!"}},{"$f":"AND(#REF!,\"AAAAABPz/1Q=\")","v":{"$error":"#REF!"}},{"$f":"AND(#REF!,\"AAAAABPz/1U=\")","v":{"$error":"#REF!"}},{"$f":"AND(#REF!,\"AAAAABPz/1Y=\")","v":{"$error":"#REF!"}},{"$f":"AND(#REF!,\"AAAAABPz/1c=\")","v":{"$error":"#REF!"}},{"$f":"AND(#REF!,\"AAAAABPz/1g=\")","v":{"$error":"#REF!"}},{"$f":"AND(#REF!,\"AAAAABPz/1k=\")","v":{"$error":"#REF!"}},{"$f":"IF(#REF!,\"AAAAABPz/1o=\",0)","v":{"$error":"#REF!"}},{"$f":"AND(#REF!,\"AAAAABPz/1s=\")","v":{"$error":"#REF!"}},{"$f":"AND(#REF!,\"AAAAABPz/1w=\")","v":{"$error":"#REF!"}},{"$f":"AND(#REF!,\"AAAAABPz/10=\")","v":{"$error":"#REF!"}},{"$f":"AND(#REF!,\"AAAAABPz/14=\")","v":{"$error":"#REF!"}},{"$f":"AND(#REF!,\"AAAAABPz/18=\")","v":{"$error":"#REF!"}},{"$f":"AND(#REF!,\"AAAAABPz/2A=\")","v":{"$error":"#REF!"}},{"$f":"IF(#REF!,\"AAAAABPz/2E=\",0)","v":{"$error":"#REF!"}},{"$f":"AND(#REF!,\"AAAAABPz/2I=\")","v":{"$error":"#REF!"}},{"$f":"AND(#REF!,\"AAAAABPz/2M=\")","v":{"$error":"#REF!"}},{"$f":"AND(#REF!,\"AAAAABPz/2Q=\")","v":{"$error":"#REF!"}},{"$f":"AND(#REF!,\"AAAAABPz/2U=\")","v":{"$error":"#REF!"}},{"$f":"AND(#REF!,\"AAAAABPz/2Y=\")","v":{"$error":"#REF!"}},{"$f":"AND(#REF!,\"AAAAABPz/2c=\")","v":{"$error":"#REF!"}},{"$f":"IF(#REF!,\"AAAAABPz/2g=\",0)","v":{"$error":"#REF!"}},{"$f":"AND(#REF!,\"AAAAABPz/2k=\")","v":{"$error":"#REF!"}},{"$f":"AND(#REF!,\"AAAAABPz/2o=\")","v":{"$error":"#REF!"}},{"$f":"AND(#REF!,\"AAAAABPz/2s=\")","v":{"$error":"#REF!"}},{"$f":"AND(#REF!,\"AAAAABPz/2w=\")","v":{"$error":"#REF!"}},{"$f":"AND(#REF!,\"AAAAABPz/20=\")","v":{"$error":"#REF!"}},{"$f":"AND(#REF!,\"AAAAABPz/24=\")","v":{"$error":"#REF!"}},{"$f":"IF(#REF!,\"AAAAABPz/28=\",0)","v":{"$error":"#REF!"}},{"$f":"AND(#REF!,\"AAAAABPz/3A=\")","v":{"$error":"#REF!"}},{"$f":"AND(#REF!,\"AAAAABPz/3E=\")","v":{"$error":"#REF!"}},{"$f":"AND(#REF!,\"AAAAABPz/3I=\")","v":{"$error":"#REF!"}},{"$f":"AND(#REF!,\"AAAAABPz/3M=\")","v":{"$error":"#REF!"}},{"$f":"AND(#REF!,\"AAAAABPz/3Q=\")","v":{"$error":"#REF!"}},{"$f":"AND(#REF!,\"AAAAABPz/3U=\")","v":{"$error":"#REF!"}},{"$f":"IF(#REF!,\"AAAAABPz/3Y=\",0)","v":{"$error":"#REF!"}},{"$f":"AND(#REF!,\"AAAAABPz/3c=\")","v":{"$error":"#REF!"}},{"$f":"AND(#REF!,\"AAAAABPz/3g=\")","v":{"$error":"#REF!"}},{"$f":"AND(#REF!,\"AAAAABPz/3k=\")","v":{"$error":"#REF!"}},{"$f":"AND(#REF!,\"AAAAABPz/3o=\")","v":{"$error":"#REF!"}},{"$f":"AND(#REF!,\"AAAAABPz/3s=\")","v":{"$error":"#REF!"}},{"$f":"IF(#REF!,\"AAAAABPz/3w=\",0)","v":{"$error":"#REF!"}},{"$f":"IF(#REF!,\"AAAAABPz/30=\",0)","v":{"$error":"#REF!"}},{"$f":"IF(#REF!,\"AAAAABPz/34=\",0)","v":{"$error":"#REF!"}},{"$f":"IF(#REF!,\"AAAAABPz/38=\",0)","v":{"$error":"#REF!"}},{"$f":"IF(#REF!,\"AAAAABPz/4A=\",0)","v":{"$error":"#REF!"}},{"$f":"IF(#REF!,\"AAAAABPz/4E=\",0)","v":{"$error":"#REF!"}},{"$f":"IF(#REF!,\"AAAAABPz/4I=\",0)","v":{"$error":"#REF!"}},{"$f":"IF('Author and Rec of Changes'!1:1,\"AAAAABPz/4M=\",0)","v":0},{"$f":"AND('Author and Rec of Changes'!A1,\"AAAAABPz/4Q=\")","v":{"$error":"#VALUE!"}},{"$f":"AND('Author and Rec of Changes'!B1,\"AAAAABPz/4U=\")","v":{"$error":"#VALUE!"}},{"$f":"AND('Author and Rec of Changes'!C1,\"AAAAABPz/4Y=\")","v":{"$error":"#VALUE!"}},{"$f":"AND('Author and Rec of Changes'!E1,\"AAAAABPz/4c=\")","v":{"$error":"#VALUE!"}},{"$f":"AND('Author and Rec of Changes'!F1,\"AAAAABPz/4g=\")","v":{"$error":"#VALUE!"}},{"$f":"AND('Author and Rec of Changes'!G1,\"AAAAABPz/4k=\")","v":{"$error":"#VALUE!"}},{"$f":"IF('Author and Rec of Changes'!#REF!,\"AAAAABPz/4o=\",0)","v":{"$error":"#REF!"}},{"$f":"AND('Author and Rec of Changes'!#REF!,\"AAAAABPz/4s=\")","v":{"$error":"#REF!"}},{"$f":"AND('Author and Rec of Changes'!#REF!,\"AAAAABPz/4w=\")","v":{"$error":"#REF!"}},{"$f":"AND('Author and Rec of Changes'!#REF!,\"AAAAABPz/40=\")","v":{"$error":"#REF!"}},{"$f":"AND('Author and Rec of Changes'!#REF!,\"AAAAABPz/44=\")","v":{"$error":"#REF!"}},{"$f":"AND('Author and Rec of Changes'!#REF!,\"AAAAABPz/48=\")","v":{"$error":"#REF!"}},{"$f":"AND('Author and Rec of Changes'!#REF!,\"AAAAABPz/5A=\")","v":{"$error":"#REF!"}},{"$f":"IF('Author and Rec of Changes'!2:2,\"AAAAABPz/5E=\",0)","v":0},{"$f":"AND('Author and Rec of Changes'!A2,\"AAAAABPz/5I=\")","v":{"$error":"#VALUE!"}},{"$f":"AND('Author and Rec of Changes'!B2,\"AAAAABPz/5M=\")","v":{"$error":"#VALUE!"}},{"$f":"AND('Author and Rec of Changes'!C2,\"AAAAABPz/5Q=\")","v":{"$error":"#VALUE!"}},{"$f":"AND('Author and Rec of Changes'!E2,\"AAAAABPz/5U=\")","v":{"$error":"#VALUE!"}},{"$f":"AND('Author and Rec of Changes'!F2,\"AAAAABPz/5Y=\")","v":{"$error":"#VALUE!"}},{"$f":"AND('Author and Rec of Changes'!G2,\"AAAAABPz/5c=\")","v":{"$error":"#VALUE!"}},{"$f":"IF('Author and Rec of Changes'!3:3,\"AAAAABPz/5g=\",0)","v":0},{"$f":"AND('Author and Rec of Changes'!A3,\"AAAAABPz/5k=\")","v":{"$error":"#VALUE!"}},{"$f":"AND('Author and Rec of Changes'!B3,\"AAAAABPz/5o=\")","v":{"$error":"#VALUE!"}},{"$f":"AND('Author and Rec of Changes'!C3,\"AAAAABPz/5s=\")","v":{"$error":"#VALUE!"}},{"$f":"AND('Author and Rec of Changes'!E3,\"AAAAABPz/5w=\")","v":{"$error":"#VALUE!"}},{"$f":"AND('Author and Rec of Changes'!F3,\"AAAAABPz/50=\")","v":{"$error":"#VALUE!"}},{"$f":"AND('Author and Rec of Changes'!G3,\"AAAAABPz/54=\")","v":{"$error":"#VALUE!"}},{"$f":"IF('Author and Rec of Changes'!#REF!,\"AAAAABPz/58=\",0)","v":{"$error":"#REF!"}},{"$f":"AND('Author and Rec of Changes'!#REF!,\"AAAAABPz/6A=\")","v":{"$error":"#REF!"}},{"$f":"AND('Author and Rec of Changes'!#REF!,\"AAAAABPz/6E=\")","v":{"$error":"#REF!"}},{"$f":"AND('Author and Rec of Changes'!#REF!,\"AAAAABPz/6I=\")","v":{"$error":"#REF!"}},{"$f":"AND('Author and Rec of Changes'!#REF!,\"AAAAABPz/6M=\")","v":{"$error":"#REF!"}},{"$f":"AND('Author and Rec of Changes'!#REF!,\"AAAAABPz/6Q=\")","v":{"$error":"#REF!"}},{"$f":"AND('Author and Rec of Changes'!#REF!,\"AAAAABPz/6U=\")","v":{"$error":"#REF!"}},{"$f":"IF('Author and Rec of Changes'!#REF!,\"AAAAABPz/6Y=\",0)","v":{"$error":"#REF!"}},{"$f":"AND('Author and Rec of Changes'!#REF!,\"AAAAABPz/6c=\")","v":{"$error":"#REF!"}},{"$f":"AND('Author and Rec of Changes'!#REF!,\"AAAAABPz/6g=\")","v":{"$error":"#REF!"}},{"$f":"AND('Author and Rec of Changes'!#REF!,\"AAAAABPz/6k=\")","v":{"$error":"#REF!"}},{"$f":"AND('Author and Rec of Changes'!#REF!,\"AAAAABPz/6o=\")","v":{"$error":"#REF!"}},{"$f":"AND('Author and Rec of Changes'!#REF!,\"AAAAABPz/6s=\")","v":{"$error":"#REF!"}},{"$f":"AND('Author and Rec of Changes'!#REF!,\"AAAAABPz/6w=\")","v":{"$error":"#REF!"}},{"$f":"IF('Author and Rec of Changes'!4:4,\"AAAAABPz/60=\",0)","v":0},{"$f":"AND('Author and Rec of Changes'!A4,\"AAAAABPz/64=\")","v":{"$error":"#VALUE!"}},{"$f":"AND('Author and Rec of Changes'!B4,\"AAAAABPz/68=\")","v":{"$error":"#VALUE!"}},{"$f":"AND('Author and Rec of Changes'!C4,\"AAAAABPz/7A=\")","v":{"$error":"#VALUE!"}},{"$f":"AND('Author and Rec of Changes'!E4,\"AAAAABPz/7E=\")","v":{"$error":"#VALUE!"}},{"$f":"AND('Author and Rec of Changes'!F4,\"AAAAABPz/7I=\")","v":{"$error":"#VALUE!"}},{"$f":"AND('Author and Rec of Changes'!G4,\"AAAAABPz/7M=\")","v":{"$error":"#VALUE!"}},{"$f":"IF('Author and Rec of Changes'!#REF!,\"AAAAABPz/7Q=\",0)","v":{"$error":"#REF!"}},{"$f":"AND('Author and Rec of Changes'!#REF!,\"AAAAABPz/7U=\")","v":{"$error":"#REF!"}},{"$f":"AND('Author and Rec of Changes'!#REF!,\"AAAAABPz/7Y=\")","v":{"$error":"#REF!"}},{"$f":"AND('Author and Rec of Changes'!#REF!,\"AAAAABPz/7c=\")","v":{"$error":"#REF!"}},{"$f":"AND('Author and Rec of Changes'!#REF!,\"AAAAABPz/7g=\")","v":{"$error":"#REF!"}},{"$f":"AND('Author and Rec of Changes'!#REF!,\"AAAAABPz/7k=\")","v":{"$error":"#REF!"}},{"$f":"AND('Author and Rec of Changes'!#REF!,\"AAAAABPz/7o=\")","v":{"$error":"#REF!"}},{"$f":"IF('Author and Rec of Changes'!#REF!,\"AAAAABPz/7s=\",0)","v":{"$error":"#REF!"}},{"$f":"AND('Author and Rec of Changes'!#REF!,\"AAAAABPz/7w=\")","v":{"$error":"#REF!"}},{"$f":"AND('Author and Rec of Changes'!#REF!,\"AAAAABPz/70=\")","v":{"$error":"#REF!"}},{"$f":"AND('Author and Rec of Changes'!#REF!,\"AAAAABPz/74=\")","v":{"$error":"#REF!"}},{"$f":"AND('Author and Rec of Changes'!#REF!,\"AAAAABPz/78=\")","v":{"$error":"#REF!"}},{"$f":"AND('Author and Rec of Changes'!#REF!,\"AAAAABPz/8A=\")","v":{"$error":"#REF!"}},{"$f":"AND('Author and Rec of Changes'!#REF!,\"AAAAABPz/8E=\")","v":{"$error":"#REF!"}},{"$f":"IF('Author and Rec of Changes'!#REF!,\"AAAAABPz/8I=\",0)","v":{"$error":"#REF!"}},{"$f":"AND('Author and Rec of Changes'!#REF!,\"AAAAABPz/8M=\")","v":{"$error":"#REF!"}},{"$f":"AND('Author and Rec of Changes'!#REF!,\"AAAAABPz/8Q=\")","v":{"$error":"#REF!"}},{"$f":"AND('Author and Rec of Changes'!#REF!,\"AAAAABPz/8U=\")","v":{"$error":"#REF!"}},{"$f":"AND('Author and Rec of Changes'!#REF!,\"AAAAABPz/8Y=\")","v":{"$error":"#REF!"}},{"$f":"AND('Author and Rec of Changes'!#REF!,\"AAAAABPz/8c=\")","v":{"$error":"#REF!"}},{"$f":"AND('Author and Rec of Changes'!#REF!,\"AAAAABPz/8g=\")","v":{"$error":"#REF!"}},{"$f":"IF('Author and Rec of Changes'!#REF!,\"AAAAABPz/8k=\",0)","v":{"$error":"#REF!"}},{"$f":"AND('Author and Rec of Changes'!#REF!,\"AAAAABPz/8o=\")","v":{"$error":"#REF!"}},{"$f":"AND('Author and Rec of Changes'!#REF!,\"AAAAABPz/8s=\")","v":{"$error":"#REF!"}},{"$f":"AND('Author and Rec of Changes'!#REF!,\"AAAAABPz/8w=\")","v":{"$error":"#REF!"}},{"$f":"AND('Author and Rec of Changes'!#REF!,\"AAAAABPz/80=\")","v":{"$error":"#REF!"}},{"$f":"AND('Author and Rec of Changes'!#REF!,\"AAAAABPz/84=\")","v":{"$error":"#REF!"}},{"$f":"AND('Author and Rec of Changes'!#REF!,\"AAAAABPz/88=\")","v":{"$error":"#REF!"}},{"$f":"IF('Author and Rec of Changes'!#REF!,\"AAAAABPz/9A=\",0)","v":{"$error":"#REF!"}},{"$f":"AND('Author and Rec of Changes'!#REF!,\"AAAAABPz/9E=\")","v":{"$error":"#REF!"}},{"$f":"AND('Author and Rec of Changes'!#REF!,\"AAAAABPz/9I=\")","v":{"$error":"#REF!"}},{"$f":"AND('Author and Rec of Changes'!#REF!,\"AAAAABPz/9M=\")","v":{"$error":"#REF!"}},{"$f":"AND('Author and Rec of Changes'!#REF!,\"AAAAABPz/9Q=\")","v":{"$error":"#REF!"}},{"$f":"AND('Author and Rec of Changes'!#REF!,\"AAAAABPz/9U=\")","v":{"$error":"#REF!"}},{"$f":"AND('Author and Rec of Changes'!#REF!,\"AAAAABPz/9Y=\")","v":{"$error":"#REF!"}},{"$f":"IF('Author and Rec of Changes'!#REF!,\"AAAAABPz/9c=\",0)","v":{"$error":"#REF!"}},{"$f":"AND('Author and Rec of Changes'!#REF!,\"AAAAABPz/9g=\")","v":{"$error":"#REF!"}},{"$f":"AND('Author and Rec of Changes'!#REF!,\"AAAAABPz/9k=\")","v":{"$error":"#REF!"}},{"$f":"AND('Author and Rec of Changes'!#REF!,\"AAAAABPz/9o=\")","v":{"$error":"#REF!"}},{"$f":"AND('Author and Rec of Changes'!#REF!,\"AAAAABPz/9s=\")","v":{"$error":"#REF!"}},{"$f":"AND('Author and Rec of Changes'!#REF!,\"AAAAABPz/9w=\")","v":{"$error":"#REF!"}},{"$f":"AND('Author and Rec of Changes'!#REF!,\"AAAAABPz/90=\")","v":{"$error":"#REF!"}},{"$f":"IF('Author and Rec of Changes'!#REF!,\"AAAAABPz/94=\",0)","v":{"$error":"#REF!"}},{"$f":"AND('Author and Rec of Changes'!#REF!,\"AAAAABPz/98=\")","v":{"$error":"#REF!"}},{"$f":"AND('Author and Rec of Changes'!#REF!,\"AAAAABPz/+A=\")","v":{"$error":"#REF!"}},{"$f":"AND('Author and Rec of Changes'!#REF!,\"AAAAABPz/+E=\")","v":{"$error":"#REF!"}},{"$f":"AND('Author and Rec of Changes'!#REF!,\"AAAAABPz/+I=\")","v":{"$error":"#REF!"}},{"$f":"AND('Author and Rec of Changes'!#REF!,\"AAAAABPz/+M=\")","v":{"$error":"#REF!"}},{"$f":"AND('Author and Rec of Changes'!#REF!,\"AAAAABPz/+Q=\")","v":{"$error":"#REF!"}},{"$f":"IF('Author and Rec of Changes'!5:5,\"AAAAABPz/+U=\",0)","v":0},{"$f":"AND('Author and Rec of Changes'!A5,\"AAAAABPz/+Y=\")","v":{"$error":"#VALUE!"}},{"$f":"AND('Author and Rec of Changes'!B5,\"AAAAABPz/+c=\")","v":{"$error":"#VALUE!"}},{"$f":"AND('Author and Rec of Changes'!C5,\"AAAAABPz/+g=\")","v":{"$error":"#VALUE!"}},{"$f":"AND('Author and Rec of Changes'!E5,\"AAAAABPz/+k=\")","v":{"$error":"#VALUE!"}},{"$f":"AND('Author and Rec of Changes'!F5,\"AAAAABPz/+o=\")","v":{"$error":"#VALUE!"}},{"$f":"AND('Author and Rec of Changes'!G5,\"AAAAABPz/+s=\")","v":{"$error":"#VALUE!"}},{"$f":"IF('Author and Rec of Changes'!#REF!,\"AAAAABPz/+w=\",0)","v":{"$error":"#REF!"}},{"$f":"AND('Author and Rec of Changes'!#REF!,\"AAAAABPz/+0=\")","v":{"$error":"#REF!"}},{"$f":"AND('Author and Rec of Changes'!#REF!,\"AAAAABPz/+4=\")","v":{"$error":"#REF!"}},{"$f":"AND('Author and Rec of Changes'!#REF!,\"AAAAABPz/+8=\")","v":{"$error":"#REF!"}},{"$f":"AND('Author and Rec of Changes'!#REF!,\"AAAAABPz//A=\")","v":{"$error":"#REF!"}},{"$f":"AND('Author and Rec of Changes'!#REF!,\"AAAAABPz//E=\")","v":{"$error":"#REF!"}},{"$f":"AND('Author and Rec of Changes'!#REF!,\"AAAAABPz//I=\")","v":{"$error":"#REF!"}},{"$f":"IF('Author and Rec of Changes'!#REF!,\"AAAAABPz//M=\",0)","v":{"$error":"#REF!"}},{"$f":"AND('Author and Rec of Changes'!#REF!,\"AAAAABPz//Q=\")","v":{"$error":"#REF!"}},{"$f":"AND('Author and Rec of Changes'!#REF!,\"AAAAABPz//U=\")","v":{"$error":"#REF!"}},{"$f":"AND('Author and Rec of Changes'!#REF!,\"AAAAABPz//Y=\")","v":{"$error":"#REF!"}},{"$f":"AND('Author and Rec of Changes'!#REF!,\"AAAAABPz//c=\")","v":{"$error":"#REF!"}},{"$f":"AND('Author and Rec of Changes'!#REF!,\"AAAAABPz//g=\")","v":{"$error":"#REF!"}},{"$f":"AND('Author and Rec of Changes'!#REF!,\"AAAAABPz//k=\")","v":{"$error":"#REF!"}},{"$f":"IF('Author and Rec of Changes'!6:6,\"AAAAABPz//o=\",0)","v":0},{"$f":"AND('Author and Rec of Changes'!A6,\"AAAAABPz//s=\")","v":{"$error":"#VALUE!"}},{"$f":"AND('Author and Rec of Changes'!B6,\"AAAAABPz//w=\")","v":{"$error":"#VALUE!"}},{"$f":"AND('Author and Rec of Changes'!C6,\"AAAAABPz//0=\")","v":{"$error":"#VALUE!"}},{"$f":"AND('Author and Rec of Changes'!E6,\"AAAAABPz//4=\")","v":{"$error":"#VALUE!"}},{"$f":"AND('Author and Rec of Changes'!F6,\"AAAAABPz//8=\")","v":{"$error":"#VALUE!"}}]
[{"$f":"AND('Author and Rec of Changes'!G6,\"AAAAAH/rVAA=\")","v":{"$error":"#VALUE!"}},{"$f":"IF('Author and Rec of Changes'!7:7,\"AAAAAH/rVAE=\",0)","v":0},{"$f":"AND('Author and Rec of Changes'!A7,\"AAAAAH/rVAI=\")","v":{"$error":"#VALUE!"}},{"$f":"AND('Author and Rec of Changes'!B7,\"AAAAAH/rVAM=\")","v":{"$error":"#VALUE!"}},{"$f":"AND('Author and Rec of Changes'!C7,\"AAAAAH/rVAQ=\")","v":{"$error":"#VALUE!"}},{"$f":"AND('Author and Rec of Changes'!E7,\"AAAAAH/rVAU=\")","v":{"$error":"#VALUE!"}},{"$f":"AND('Author and Rec of Changes'!F7,\"AAAAAH/rVAY=\")","v":{"$error":"#VALUE!"}},{"$f":"AND('Author and Rec of Changes'!G7,\"AAAAAH/rVAc=\")","v":{"$error":"#VALUE!"}},{"$f":"IF('Author and Rec of Changes'!8:8,\"AAAAAH/rVAg=\",0)","v":0},{"$f":"AND('Author and Rec of Changes'!A8,\"AAAAAH/rVAk=\")","v":{"$error":"#VALUE!"}},{"$f":"AND('Author and Rec of Changes'!B8,\"AAAAAH/rVAo=\")","v":{"$error":"#VALUE!"}},{"$f":"AND('Author and Rec of Changes'!C8,\"AAAAAH/rVAs=\")","v":{"$error":"#VALUE!"}},{"$f":"AND('Author and Rec of Changes'!E8,\"AAAAAH/rVAw=\")","v":{"$error":"#VALUE!"}},{"$f":"AND('Author and Rec of Changes'!F8,\"AAAAAH/rVA0=\")","v":{"$error":"#VALUE!"}},{"$f":"AND('Author and Rec of Changes'!G8,\"AAAAAH/rVA4=\")","v":{"$error":"#VALUE!"}},{"$f":"IF('Author and Rec of Changes'!9:9,\"AAAAAH/rVA8=\",0)","v":0},{"$f":"AND('Author and Rec of Changes'!A9,\"AAAAAH/rVBA=\")","v":{"$error":"#VALUE!"}},{"$f":"AND('Author and Rec of Changes'!B9,\"AAAAAH/rVBE=\")","v":{"$error":"#VALUE!"}},{"$f":"AND('Author and Rec of Changes'!C9,\"AAAAAH/rVBI=\")","v":{"$error":"#VALUE!"}},{"$f":"AND('Author and Rec of Changes'!E9,\"AAAAAH/rVBM=\")","v":{"$error":"#VALUE!"}},{"$f":"AND('Author and Rec of Changes'!F9,\"AAAAAH/rVBQ=\")","v":{"$error":"#VALUE!"}},{"$f":"AND('Author and Rec of Changes'!G9,\"AAAAAH/rVBU=\")","v":{"$error":"#VALUE!"}},{"$f":"IF('Author and Rec of Changes'!10:10,\"AAAAAH/rVBY=\",0)","v":0},{"$f":"IF('Author and Rec of Changes'!11:11,\"AAAAAH/rVBc=\",0)","v":0},{"$f":"IF('Author and Rec of Changes'!12:12,\"AAAAAH/rVBg=\",0)","v":0},{"$f":"IF('Author and Rec of Changes'!13:13,\"AAAAAH/rVBk=\",0)","v":0},{"$f":"IF('Author and Rec of Changes'!14:14,\"AAAAAH/rVBo=\",0)","v":0},{"$f":"IF('Author and Rec of Changes'!15:15,\"AAAAAH/rVBs=\",0)","v":0},{"$f":"IF('Author and Rec of Changes'!16:16,\"AAAAAH/rVBw=\",0)","v":0},{"$f":"IF('Author and Rec of Changes'!A:A,\"AAAAAH/rVB0=\",0)","v":0},{"$f":"IF('Author and Rec of Changes'!B:B,\"AAAAAH/rVB4=\",0)","v":{"$error":"#VALUE!"}},{"$f":"IF('Author and Rec of Changes'!C:C,\"AAAAAH/rVB8=\",0)","v":{"$error":"#VALUE!"}},{"$f":"IF('Author and Rec of Changes'!E:E,\"AAAAAH/rVCA=\",0)","v":{"$error":"#VALUE!"}},{"$f":"IF('Author and Rec of Changes'!F:F,\"AAAAAH/rVCE=\",0)","v":0},{"$f":"IF('Author and Rec of Changes'!G:G,\"AAAAAH/rVCI=\",0)","v":0},"AAAAAH/rVCM=","AAAAAH/rVCQ=","AAAAAH/rVCU=",{"$f":"IF(\"N\",[0]!_xlnm._FilterDatabase,\"AAAAAH/rVCY=\")","v":{"$error":"#VALUE!"}}]
[{"$f":"AND(Syllabus!A1,\"AAAAACvx+wA=\")","v":{"$error":"#VALUE!"}},{"$f":"IF(Syllabus!#REF!,\"AAAAACvx+wE=\",0)","v":{"$error":"#REF!"}},{"$f":"AND(Syllabus!#REF!,\"AAAAACvx+wI=\")","v":{"$error":"#REF!"}},{"$f":"AND(Syllabus!#REF!,\"AAAAACvx+wM=\")","v":{"$error":"#REF!"}},{"$f":"AND(Syllabus!#REF!,\"AAAAACvx+wQ=\")","v":{"$error":"#REF!"}},{"$f":"AND(Syllabus!#REF!,\"AAAAACvx+wU=\")","v":{"$error":"#REF!"}},{"$f":"AND(Syllabus!#REF!,\"AAAAACvx+wY=\")","v":{"$error":"#REF!"}},{"$f":"AND(Syllabus!#REF!,\"AAAAACvx+wc=\")","v":{"$error":"#REF!"}},{"$f":"AND(Syllabus!#REF!,\"AAAAACvx+wg=\")","v":{"$error":"#REF!"}},{"$f":"IF(Syllabus!#REF!,\"AAAAACvx+wk=\",0)","v":{"$error":"#REF!"}},{"$f":"AND(Syllabus!#REF!,\"AAAAACvx+wo=\")","v":{"$error":"#REF!"}},{"$f":"AND(Syllabus!#REF!,\"AAAAACvx+ws=\")","v":{"$error":"#REF!"}},{"$f":"AND(Syllabus!#REF!,\"AAAAACvx+ww=\")","v":{"$error":"#REF!"}},{"$f":"AND(Syllabus!#REF!,\"AAAAACvx+w0=\")","v":{"$error":"#REF!"}},{"$f":"AND(Syllabus!#REF!,\"AAAAACvx+w4=\")","v":{"$error":"#REF!"}},{"$f":"AND(Syllabus!#REF!,\"AAAAACvx+w8=\")","v":{"$error":"#REF!"}},{"$f":"AND(Syllabus!#REF!,\"AAAAACvx+xA=\")","v":{"$error":"#REF!"}}]